Workbook

Sheet Prelim_Nov
B2: November Prelim Analysis National 4
D5: Paper 1 | L5: Paper 2
D6: Fraction of a Quanitity | E6: Mean and Rounding | F6: Percentage of a Quanitity | G6: Basic Number - Mulitple | H6: Basic Number - Add/ Sub | L6: Equations | M6: Composite Area | N6: Composite Area | O6: Linear Patterns | P6: Linear Patterns | Q6: Time Speed Distance | R6: Pythagoras in Context | S6: Pythagoras in Context | T6: SOHCAHTOA in Context | U6: Coordinates and Shape | V6: Coordinates and Shape
D7: 3 | E7: 4 | F7: 3 | G7: 2 | H7: 3 | J7: =SUM(D7:H7) -> 15 | L7: 3 | M7: 4 | N7: 1 | O7: 4 | P7: 1 | Q7: 3 | R7: 4 | S7: 1 | T7: 3 | U7: 3 | V7: 1 | X7: =SUM(L7:U7) -> 27 | Z7: =X7+J7 -> 42 | AA7: 3
D8: R | E8: R | F8: R | G8: R | H8: R | L8: R | M8: R | N8: R | O8: R | P8: R | Q8: R | R8: R | S8: R | T8: R | U8: R | V8: R
B9: Firstname | C9: Surname | D9: Q1 | E9: Q2 | F9: Q3 | G9: Q4 | H9: Q5 | J9: P1 | L9: Q1 | M9: Q2 | N9: # | O9: Q3 | P9: # | Q9: Q4 | R9: Q5 | S9: # | T9: Q6 | U9: Q7 | V9: # | X9: P2 | Y9: # | Z9: P1/P2 | AA9: T#
A10: 1 | B10: Liam | C10: Anderson | D10: 3 | E10: 4 | F10: 3 | G10: 1 | H10: 3 | J10: 14 | L10: 2 | M10: 1 | N10: 0 | O10: 2 | P10: 0 | Q10: 1 | R10: 3 | S10: 0 | T10: 1 | U10: 3 | X10: 13 | Y10: 0 | Z10: 27 | AA10: 0
C11: Revision | D11: ü | E11: ü | F11: ü | G11: ü | H11: ü | L11: ü | M11: ü | O11: ü | Q11: ü | R11: ü | S11: ü | T11: ü | U11: ü
C12: Number completed | D12: 1 | E12: 1 | F12: 1 | G12: 1 | H12: 1 | L12: 1 | M12: 1 | O12: 1 | Q12: 1 | R12: 1 | S12: 1 | T12: 1 | U12: 1
A13: 2 | B13: Shaun | C13: Bowers | D13: 3 | E13: 2 | F13: 3 | G13: 2 | H13: 3 | J13: =SUM(D13:H13) -> 13 | L13: 3 | M13: 3 | N13: 0 | O13: 4 | P13: 1 | Q13: 3 | R13: 4 | S13: 1 | T13: 3 | U13: 3 | X13: =SUM(L13:M13,O13,Q13,R13,T13,U13) -> 23 | Y13: =SUM(N13,P13,S13,V13) -> 2 | Z13: =X13+J13 -> 36 | AA13: =Y13 -> 2
C14: Revision
C15: Number completed
A16: 3 | B16: Jordan | C16: Brownlie | D16: 3 | E16: 2 | F16: 2 | G16: 2 | H16: 3 | J16: =SUM(D16:H16) -> 12 | L16: 3 | M16: 4 | N16: 1 | O16: 4 | P16: 1 | Q16: 2 | R16: 3 | S16: 0 | T16: 3 | U16: 1 | X16: =SUM(L16:M16,O16,Q16,R16,T16,U16) -> 20 | Y16: =SUM(N16,P16,S16,V16) -> 2 | Z16: =X16+J16 -> 32 | AA16: =Y16 -> 2
C17: Revision
C18: Number completed
A19: 4 | B19: Joseph | C19: Daly | D19: 3 | E19: 4 | F19: 3 | G19: 2 | H19: 3 | J19: =SUM(D19:H19) -> 15 | L19: 2 | M19: 0 | N19: 0 | O19: 3 | P19: 1 | Q19: 2 | R19: 3 | S19: 0 | T19: 1 | U19: 3 | X19: =SUM(L19:M19,O19,Q19,R19,T19,U19) -> 14 | Y19: =SUM(N19,P19,S19,V19) -> 1 | Z19: =X19+J19 -> 29 | AA19: =Y19 -> 1
C20: Revision
C21: Number completed
A22: 5 | B22: Jason | C22: Dickie | D22: 2 | E22: 0 | F22: 3 | G22: 1 | H22: 3 | J22: =SUM(D22:H22) -> 9 | L22: 3 | M22: 1 | N22: 0 | O22: 1 | P22: 0 | Q22: 0 | R22: 3 | S22: 1 | T22: 0 | U22: 2 | X22: =SUM(L22:M22,O22,Q22,R22,T22,U22) -> 10 | Y22: =SUM(N22,P22,S22,V22) -> 1 | Z22: =X22+J22 -> 19 | AA22: =Y22 -> 1
C23: Revision
C24: Number completed
A25: 6 | B25: Euan | C25: Docherty | D25: 3 | E25: 3 | F25: 3 | G25: 2 | H25: 3 | J25: =SUM(D25:H25) -> 14 | L25: 3 | M25: 1 | N25: 0 | O25: 4 | P25: 1 | Q25: 2 | R25: 1 | S25: 0 | T25: 0 | U25: 3 | X25: =SUM(L25:M25,O25,Q25,R25,T25,U25) -> 14 | Y25: =SUM(N25,P25,S25,V25) -> 1 | Z25: =X25+J25 -> 28 | AA25: =Y25 -> 1
C26: Revision
C27: Number completed
A28: 7 | B28: Lewis | C28: Doherty | D28: 3 | E28: 4 | F28: 3 | G28: 2 | H28: 3 | J28: =SUM(D28:H28) -> 15 | L28: 3 | M28: 0 | N28: 0 | O28: 4 | P28: 1 | Q28: 2 | R28: 1 | S28: 0 | T28: 0 | U28: 1 | X28: =SUM(L28:M28,O28,Q28,R28,T28,U28) -> 11 | Y28: =SUM(N28,P28,S28,V28) -> 1 | Z28: =X28+J28 -> 26 | AA28: =Y28 -> 1
C29: Revision
C30: Number completed
A31: 8 | B31: Sophie-Lee | C31: Elliott | D31: 2 | E31: 3 | F31: 0 | G31: 1 | H31: 2 | J31: =SUM(D31:H31) -> 8 | L31: 3 | M31: 3 | N31: 1 | O31: 1 | P31: 0 | Q31: 0 | R31: 3 | S31: 1 | T31: 2 | U31: 0 | X31: =SUM(L31:M31,O31,Q31,R31,T31,U31) -> 12 | Y31: =SUM(N31,P31,S31,V31) -> 2 | Z31: =X31+J31 -> 20 | AA31: =Y31 -> 2
C32: Revision
C33: Number completed
A34: 9 | B34: Jordan | C34: Faleu | D34: 3 | E34: 4 | F34: 3 | G34: 2 | H34: 3 | J34: =SUM(D34:H34) -> 15 | L34: 3 | M34: 4 | N34: 1 | O34: 4 | P34: 1 | Q34: 3 | R34: 4 | S34: 1 | T34: 3 | U34: 3 | X34: =SUM(L34:M34,O34,Q34,R34,T34,U34) -> 24 | Y34: =SUM(N34,P34,S34,V34) -> 3 | Z34: =X34+J34 -> 39 | AA34: =Y34 -> 3
C35: Revision
C36: Number completed
A37: 10 | B37: Owen | C37: Fyfe | D37: 3 | E37: 2 | F37: 3 | G37: 2 | H37: 3 | J37: =SUM(D37:H37) -> 13 | L37: 3 | M37: 1 | N37: 0 | O37: 4 | P37: 1 | Q37: 2 | R37: 3 | S37: 0 | T37: 2 | U37: 3 | X37: =SUM(L37:M37,O37,Q37,R37,T37,U37) -> 18 | Y37: =SUM(N37,P37,S37,V37) -> 1 | Z37: =X37+J37 -> 31 | AA37: =Y37 -> 1
C38: Revision
C39: Number completed
A40: 11 | B40: William | C40: Gill | D40: 3 | E40: 0 | F40: 3 | G40: 1 | H40: 3 | J40: =SUM(D40:H40) -> 10 | L40: 0 | M40: 1 | N40: 0 | O40: 2 | P40: 0 | Q40: 1 | R40: 1 | S40: 0 | T40: 1 | U40: 2 | X40: =SUM(L40:M40,O40,Q40,R40,T40,U40) -> 8 | Y40: =SUM(N40,P40,S40,V40) -> 0 | Z40: =X40+J40 -> 18 | AA40: =Y40 -> 0
C41: Revision
C42: Number completed
A43: 12 | B43: Murray | C43: Glen | D43: 3 | E43: 2 | F43: 3 | G43: 2 | H43: 3 | J43: =SUM(D43:H43) -> 13 | L43: 2 | M43: 3 | N43: 1 | O43: 3 | P43: 1 | Q43: 3 | R43: 3 | S43: 0 | T43: 2 | U43: 3 | X43: =SUM(L43:M43,O43,Q43,R43,T43,U43) -> 19 | Y43: =SUM(N43,P43,S43,V43) -> 2 | Z43: =X43+J43 -> 32 | AA43: =Y43 -> 2
C44: Revision
C45: Number completed
A46: 13 | B46: Kieron | C46: Hagan | D46: 3 | E46: 4 | F46: 3 | G46: 2 | H46: 3 | J46: =SUM(D46:H46) -> 15 | L46: 3 | M46: 3 | N46: 1 | O46: 4 | P46: 1 | Q46: 3 | R46: 2 | S46: 0 | T46: 3 | U46: 3 | X46: =SUM(L46:M46,O46,Q46,R46,T46,U46) -> 21 | Y46: =SUM(N46,P46,S46,V46) -> 2 | Z46: =X46+J46 -> 36 | AA46: =Y46 -> 2
C47: Revision
C48: Number completed
A49: 14 | B49: Thomas | C49: Hamilton | D49: 2 | E49: 3 | F49: 3 | G49: 2 | H49: 3 | J49: =SUM(D49:H49) -> 13 | L49: 3 | M49: 1 | N49: 0 | O49: 1 | P49: 0 | Q49: 2 | R49: 0 | S49: 0 | T49: 0 | U49: 2 | X49: =SUM(L49:M49,O49,Q49,R49,T49,U49) -> 9 | Y49: =SUM(N49,P49,S49,V49) -> 0 | Z49: =X49+J49 -> 22 | AA49: =Y49 -> 0
C50: Revision
C51: Number completed
A52: 15 | B52: Mark | C52: Haswell | D52: 3 | E52: 2 | F52: 3 | G52: 2 | H52: 3 | J52: =SUM(D52:H52) -> 13 | L52: 3 | M52: 0 | N52: 0 | O52: 1 | P52: 0 | Q52: 1 | R52: 4 | S52: 1 | T52: 1 | U52: 3 | X52: =SUM(L52:M52,O52,Q52,R52,T52,U52) -> 13 | Y52: =SUM(N52,P52,S52,V52) -> 1 | Z52: =X52+J52 -> 26 | AA52: =Y52 -> 1
C53: Revision
C54: Number completed
A55: 16 | B55: Emma-Louise | C55: Jones | D55: 3 | E55: 4 | F55: 3 | G55: 2 | H55: 3 | J55: =SUM(D55:H55) -> 15 | L55: 3 | M55: 2 | N55: 0 | O55: 4 | P55: 1 | Q55: 1 | R55: 4 | S55: 1 | T55: 3 | U55: 2 | X55: =SUM(L55:M55,O55,Q55,R55,T55,U55) -> 19 | Y55: =SUM(N55,P55,S55,V55) -> 2 | Z55: =X55+J55 -> 34 | AA55: =Y55 -> 2
C56: Revision
C57: Number completed
A58: 18 | B58: Marina | C58: McDonald | D58: 2 | E58: 1 | F58: 3 | G58: 2 | H58: 3 | J58: =SUM(D58:H58) -> 11 | L58: 3 | M58: 3 | N58: 1 | O58: 4 | P58: 1 | Q58: 3 | R58: 4 | S58: 1 | T58: 3 | U58: 3 | X58: =SUM(L58:M58,O58,Q58,R58,T58,U58) -> 23 | Y58: =SUM(N58,P58,S58,V58) -> 3 | Z58: =X58+J58 -> 34 | AA58: =Y58 -> 3
C59: Revision
C60: Number completed
A61: 19 | B61: Ainslie | C61: McLaren | D61: 3 | E61: 4 | F61: 3 | G61: 2 | H61: 2 | J61: =SUM(D61:H61) -> 14 | L61: 2 | M61: 1 | N61: 0 | O61: 3 | P61: 1 | Q61: 2 | R61: 4 | S61: 1 | T61: 0 | U61: 3 | X61: =SUM(L61:M61,O61,Q61,R61,T61,U61) -> 15 | Y61: =SUM(N61,P61,S61,V61) -> 2 | Z61: =X61+J61 -> 29 | AA61: =Y61 -> 2
C62: Revision
C63: Number completed
A64: 20 | B64: Megan | C64: McLaren | D64: 3 | E64: 2 | F64: 3 | G64: 2 | H64: 3 | J64: =SUM(D64:H64) -> 13 | L64: 3 | M64: 4 | N64: 1 | O64: 4 | P64: 1 | Q64: 3 | R64: 3 | S64: 0 | T64: 3 | U64: 2 | X64: =SUM(L64:M64,O64,Q64,R64,T64,U64) -> 22 | Y64: =SUM(N64,P64,S64,V64) -> 2 | Z64: =X64+J64 -> 35 | AA64: =Y64 -> 2
C65: Revision
C66: Number completed
A67: 21 | B67: Brenden | C67: McNamee | D67: 3 | E67: 2 | F67: 3 | G67: 2 | H67: 3 | J67: =SUM(D67:H67) -> 13 | L67: 3 | M67: 2 | N67: 0 | O67: 4 | P67: 1 | Q67: 1 | R67: 4 | S67: 1 | T67: 2 | U67: 0 | X67: =SUM(L67:M67,O67,Q67,R67,T67,U67) -> 16 | Y67: =SUM(N67,P67,S67,V67) -> 2 | Z67: =X67+J67 -> 29 | AA67: =Y67 -> 2
C68: Revision
C69: Number completed
A70: 22 | B70: Jack | C70: McPake | D70: 3 | E70: 4 | F70: 3 | G70: 2 | H70: 3 | J70: =SUM(D70:H70) -> 15 | L70: 3 | M70: 3 | N70: 1 | O70: 4 | P70: 1 | Q70: 0 | R70: 3 | S70: 0 | T70: 3 | U70: 3 | X70: =SUM(L70:M70,O70,Q70,R70,T70,U70) -> 19 | Y70: =SUM(N70,P70,S70,V70) -> 2 | Z70: =X70+J70 -> 34 | AA70: =Y70 -> 2
C71: Revision
C72: Number completed
A73: 23 | B73: Emma | C73: Quail | D73: 3 | E73: 4 | F73: 3 | G73: 2 | H73: 3 | J73: =SUM(D73:H73) -> 15 | L73: 3 | M73: 2 | N73: 0 | O73: 3 | P73: 1 | Q73: 0 | R73: 2 | S73: 0 | T73: 2 | U73: 2 | X73: =SUM(L73:M73,O73,Q73,R73,T73,U73) -> 14 | Y73: =SUM(N73,P73,S73,V73) -> 1 | Z73: =X73+J73 -> 29 | AA73: =Y73 -> 1
C74: Revision
C75: Number completed
A76: 24 | B76: Daniel | C76: Rodgers | D76: 3 | E76: 3 | F76: 3 | G76: 2 | H76: 2 | J76: =SUM(D76:H76) -> 13 | L76: 2 | M76: 2 | N76: 0 | O76: 2 | P76: 1 | Q76: 2 | R76: 0 | S76: 0 | T76: 2 | U76: 3 | X76: =SUM(L76:M76,O76,Q76,R76,T76,U76) -> 13 | Y76: =SUM(N76,P76,S76,V76) -> 1 | Z76: =X76+J76 -> 26 | AA76: =Y76 -> 1
C77: Revision
C78: Number completed
A79: 25 | B79: Bethan | C79: Rowan | D79: 3 | E79: 2 | F79: 3 | G79: 2 | H79: 3 | J79: =SUM(D79:H79) -> 13 | L79: 3 | M79: 4 | N79: 1 | O79: 4 | P79: 1 | Q79: 2 | R79: 4 | S79: 1 | T79: 3 | U79: 2 | X79: =SUM(L79:M79,O79,Q79,R79,T79,U79) -> 22 | Y79: =SUM(N79,P79,S79,V79) -> 3 | Z79: =X79+J79 -> 35 | AA79: =Y79 -> 3
C80: Revision
C81: Number completed
A82: 26 | B82: Ryan | C82: Thomson | D82: 3 | E82: 4 | F82: 3 | G82: 2 | H82: 3 | J82: =SUM(D82:H82) -> 15 | L82: 0 | M82: 0 | N82: 0 | O82: 4 | P82: 1 | Q82: 2 | R82: 3 | S82: 0 | T82: 2 | U82: 3 | X82: =SUM(L82:M82,O82,Q82,R82,T82,U82) -> 14 | Y82: =SUM(N82,P82,S82,V82) -> 1 | Z82: =X82+J82 -> 29 | AA82: =Y82 -> 1
C83: Revision
C84: Number completed

Sheet Fraction_Of_Quantity
B2: National 4 AVU Individual Pupil Revision Plan (Fraction of a Quantity)
B5: Name : | V5: Mark : | Z5: /21
B7: Teacher : | F7: Mr Lafferty
AH9: =ROUND(RAND()*(9-2)+2,0) -> 5 | AI9: =ROUND(RAND()*(9-2)+2,0) -> 6
B10: Q1. | D10: Find | AH10: =AH9+1 -> 6 | AI10: =AI9+1 -> 7
AH11: =ROUND(RAND()*(200-5)+5,0)*LCM(AH9,AH10) -> 1230 | AI11: =ROUND(RAND()*(200-5)+5,0)*LCM(AI9,AI10) -> 4410
C12: (a) | F12: =AH9 -> 5 | G12: of | I12: =AH11 -> 1230 | Q12: (b) | T12: =AI9 -> 6 | U12: of | W12: =AI11 -> 4410 | AH12: =AH11/AH10*AH9 -> 1025 | AI12: =AI11/AI10*AI9 -> 3780
F13: =AH10 -> 6 | T13: =AI10 -> 7
AH23: =ROUND(RAND()*(9-2)+2,0) -> 5
B24: ="Q2. Megan won £"&AH25&" in a raffle. She put "&AH23&"/"&AH24&" into the bank." -> Q2. Megan won £3540 in a raffle. She put 5/6 into the bank. | AH24: =AH23+1 -> 6
AH25: =ROUND(RAND()*(200-5)+5,0)*LCM(AH23,AH24) -> 3540
C26: How much did she put into the bank ? | R26: £ | AH26: =AH25/AH24*AH23 -> 2950
AH36: =ROUND(RAND()*(9-2)+2,0) -> 8
B37: ="Q3. Bethan paid £"&AH38&" for a holiday. Marina paid only "&AH36&"/"&AH37&" of Bethan's price." -> Q3. Bethan paid £1296 for a holiday. Marina paid only 8/9 of Bethan's price. | AH37: =AH36+1 -> 9
AH38: =ROUND(RAND()*(99-5)+5,0)*LCM(AH36,AH37) -> 1296
C39: How much did Marina pay ? | R39: £ | AH39: =AH38/AH37*AH36 -> 1152
AH49: =ROUND(RAND()*(9-2)+2,0) -> 4
B50: ="Q4. The full price for a laptop is £"&AH51&". In the sale you pay "&AH49&"/"&AH50&" of the full price." -> Q4. The full price for a laptop is £1780. In the sale you pay 4/5 of the full price. | AH50: =AH49+1 -> 5
AH51: =ROUND(RAND()*(99-5)+5,0)*LCM(AH49,AH50) -> 1780
C52: How much is the laptop in the sale ? | R52: £ | AH52: =AH51/AH50*AH49 -> 1424
AH62: =ROUND(RAND()*(9-2)+2,0) -> 2
B63: ="Q5. Joseph won £"&AH64&" in the lottery. He used "&AH62&"/"&AH63&" of the his winning's to buy motorcycle." -> Q5. Joseph won £492 in the lottery. He used 2/3 of the his winning's to buy motorcycle. | AH63: =AH62+1 -> 3
AH64: =ROUND(RAND()*(99-5)+5,0)*LCM(AH62,AH63) -> 492
C65: How much did the motorcycle cost ? | R65: £ | AH65: =AH64/AH63*AH62 -> 328
AH76: =ROUND(RAND()*(9-2)+2,0) -> 5
B77: ="Q6. A football stadium contains "&AH78&" people. "&AH76&"/"&AH77&" are male." -> Q6. A football stadium contains 1650 people. 5/6 are male. | AH77: =AH76+1 -> 6
AH78: =ROUND(RAND()*(99-5)+5,0)*LCM(AH76,AH77) -> 1650
C79: How many male people where there ? | AH79: =AH78/AH77*AH76 -> 1375
B90: Check that you have shown ALL your working before submitting your work.

Sheet Percentages
B2: National 4 AVU Individual Pupil Revision Plan (Percentages)
B5: Name : | V5: Mark : | Z5: /21
B7: Teacher : | F7: Mr Lafferty
AH9: =ROUND(RAND()*(4-2)+2,0)*10 -> 30 | AI9: =ROUND(RAND()*(9-6)+6,0)*10 -> 60
B10: Q1. | C10: Find
AH11: =ROUND(RAND()*(200-21)+21,0)*10 -> 980 | AI11: =ROUND(RAND()*(200-21)+21,0)*10 -> 910
C12: (a) | E12: =AH9 -> 30 | G12: % of | I12: =AH11 -> 980 | Q12: (b) | S12: =AI9 -> 60 | U12: % of | W12: =AI11 -> 910 | AH12: =AH9/100*AH11 -> 294 | AI12: =AI9/100*AI11 -> 546
AH23: =ROUND(RAND()*(4-2)+2,0)*10 -> 20
B24: ="Q2. Daniel printed "&AH23&" % of his "&AH25&" photos." -> Q2. Daniel printed 20 % of his 530 photos.
AH25: =ROUND(RAND()*(200-21)+21,0)*10 -> 530
C26: How many photos did he print ? | W26: photos | AH26: =AH23/100*AH25 -> 106
AH36: =ROUND(RAND()*(8-6)+6,0)*10 -> 70
B37: ="Q3. Thomas has £"&AH38&" in savings. He spents "&AH36&"% of his savings." -> Q3. Thomas has £3880 in savings. He spents 70% of his savings.
AH38: =ROUND(RAND()*(900-200)+200,0)*10 -> 3880
C39: How much did Thomas spent ? | R39: £ | AH39: =AH36/100*AH38 -> 2716
AH49: =ROUND(RAND()*(4-2)+2,0)*10 -> 30
B50: ="Q4. The full price of a holiday is £"&AH51&". In the sale you pay only "&AH49&"% of the full price." -> Q4. The full price of a holiday is £2220. In the sale you pay only 30% of the full price.
AH51: =ROUND(RAND()*(900-200)+200,0)*10 -> 2220
C52: How much is the holiday in the sale ? | R52: £ | AH52: =AH49/100*AH51 -> 666
AH62: =ROUND(RAND()*(4-2)+2,0)*10 -> 30
B63: ="Q5. In a survey of "&AH64&" people. "&AH62&"% voted YES." -> Q5. In a survey of 5750 people. 30% voted YES.
AH64: =ROUND(RAND()*(900-200)+200,0)*10 -> 5750
C65: How many people voted YES ? | W65: people | AH65: =AH62/100*AH64 -> 1725
AH76: =ROUND(RAND()*(8-6)+6,0)*10 -> 60
B77: ="Q6. "&AH78&" people attended a basketball match. "&AH76&"% were female. " -> Q6. 5650 people attended a basketball match. 60% were female.
AH78: =ROUND(RAND()*(900-200)+200,0)*10 -> 5650
C79: How many females attended the match ? | W79: females | AH79: =AH76/100*AH78 -> 3390
B90: Check that you have shown ALL your working before submitting your work.

Sheet Mean_Range
B2: National 4 AVU Individual Pupil Revision Plan (Mean Rounding & Range)
B5: Name : | V5: Mark : | Z5: /29
B7: Teacher : | F7: Mr Lafferty
AI9: =ROUND(RAND()*(9-6)+6,0)*10 -> 70
B10: Q1. The table shows the number of pupils walking | T10: Mean = | AG10: =ROUND(AVERAGE(H15:I19),0) -> 95
B11: to school each day. Calculate the mean number of
B12: pupils walking to school per day and the range. | T12: Range = | AG12: =AI12-AJ12 -> 60 | AI12: =MAX(H15:I19) -> 125 | AJ12: =MIN(H15:I19) -> 65
C14: Days | H14: No. of Pupils
C15: Monday | H15: =ROUND(RAND()*(16-12)+12,0)*5 -> 65
C16: Tuesday | H16: =ROUND(RAND()*(25-12)+12,0)*5 -> 70
C17: Wednesday | H17: =ROUND(RAND()*(30-12)+12,0)*5 -> 110
C18: Thursday | H18: =ROUND(RAND()*(30-12)+12,0)*5 -> 105
C19: Friday | H19: =ROUND(RAND()*(35-12)+12,0)*5 -> 125
AH21: =ROUND(RAND()*(4-2)+2,0)*10 -> 20
B22: Q2. The table shows the number of cakes sold in a shop. | T22: Mean = | AG22: =ROUND(AVERAGE(H27:I32),0) -> 18
B23: Calculate the average cakes sold per day
B24: to the nearest whole number and the range.
T25: Range = | AG25: =AI25-AJ25 -> 11 | AI25: =MAX(H27:I31) -> 25 | AJ25: =MIN(H27:I31) -> 14
C26: Days | H26: Cakes
C27: Monday | H27: =ROUND(RAND()*(20-15)+15,0) -> 16
C28: Tuesday | H28: =ROUND(RAND()*(20-10)+10,0) -> 16
C29: Wednesday | H29: =ROUND(RAND()*(15-8)+8,0) -> 14
C30: Thursday | H30: =ROUND(RAND()*(20-12)+12,0) -> 17
C31: Friday | H31: =ROUND(RAND()*(30-20)+20,0) -> 25
AH33: =ROUND(RAND()*(8-6)+6,0)*10 -> 70
B35: Q3. The table shows the snowfall in centimetres over a week. | T35: Mean = | AG35: =ROUND(AVERAGE(H40:I46),2) -> 4.86
B36: Calculate the mean snowfall for a day to 2 decimal places and the range.
T38: Range = | AG38: =AI38-AJ38 -> 6 | AI38: =MAX(H40:I46) -> 7 | AJ38: =MIN(H40:I46) -> 1
C39: Days | H39: Snowfall (cm)
C40: Monday | H40: =ROUND(RAND()*(9-0)+0,0) -> 6
C41: Tuesday | H41: 7
C42: Wednesday | H42: 1
C43: Thursday | H43: 7
C44: Friday | H44: 1
C45: Saturday | H45: 6
C46: Sunday | H46: 6
AH48: =ROUND(RAND()*(4-2)+2,0)*10 -> 40
B49: Q4. The table shows the number of books sold in a shop | T49: Mean = | AG49: =ROUND(AVERAGE(H54:I60),0) -> 24
B50: Calculate the mean books sold per day to the nearest whole book.
T52: Range = | AG52: =AI52-AJ52 -> 26 | AI52: =MAX(H54:I60) -> 39 | AJ52: =MIN(H54:I60) -> 13
C53: Days | H53: Books
C54: Monday | H54: =ROUND(RAND()*(20-15)+15,0) -> 19
C55: Tuesday | H55: =ROUND(RAND()*(20-10)+10,0) -> 16
C56: Wednesday | H56: =ROUND(RAND()*(15-8)+8,0) -> 13
C57: Thursday | H57: =ROUND(RAND()*(20-12)+12,0) -> 19
C58: Friday | H58: =ROUND(RAND()*(30-20)+20,0) -> 28
C59: Saturday | H59: =ROUND(RAND()*(40-30)+30,0) -> 39
C60: Sunday | H60: =ROUND(RAND()*(40-30)+30,0) -> 31
AH63: =ROUND(RAND()*(4-2)+2,0)*10 -> 30
B64: Q5. The table shows hours of sunshine over one week. | T64: Mean = | AG64: =ROUND(AVERAGE(H69:I75),2) -> 4.71
B65: Calculate the average hours of sunshine per day to 2 decimal places.
T67: Range = | AG67: =AI67-AJ67 -> 6 | AI67: =MAX(H69:I75) -> 8 | AJ67: =MIN(H69:I75) -> 2
C68: Days | H68: Hours
C69: Monday | H69: =ROUND(RAND()*(9-0)+0,0) -> 2
C70: Tuesday | H70: 8
C71: Wednesday | H71: 2
C72: Thursday | H72: 4
C73: Friday | H73: 7
C74: Saturday | H74: 5
C75: Sunday | H75: 5
B79: Q6. The table shows the number of shoes sold over one week. | T79: Mean = | AG79: =ROUND(AVERAGE(H84:I90),0) -> 4
C80: Calculate the average number of shoes sold per day
C81: to the nearest whole number and the range.
T82: Range = | AG82: =AI82-AJ82 -> 9 | AI82: =MAX(H84:I90) -> 9 | AJ82: =MIN(H84:I90) -> 0
C83: Days | H83: Shoes
C84: Monday | H84: =ROUND(RAND()*(9-0)+0,0) -> 4
C85: Tuesday | H85: 1
C86: Wednesday | H86: 3
C87: Thursday | H87: 1
C88: Friday | H88: 7
C89: Saturday | H89: =ROUND(RAND()*(9-0)+0,0) -> 0
C90: Sunday | H90: 9
AH91: =ROUND(RAND()*(8-6)+6,0)*10 -> 70
B95: Check that you have shown ALL your working before submitting your work.

Sheet Multiplication
B2: National 4 AVU Individual Pupil Revision Plan (Multiplication)
B5: Name : | V5: Mark : | Z5: /12
B7: Teacher : | F7: Mr Lafferty
AH9: =ROUND(RAND()*(9-3)+3,0) -> 7 | AI9: =ROUND(RAND()*(9-3)+3,0) -> 8
B10: Q1. | C10: Calculate
AH11: =ROUND(RAND()*(97-19)+19,0) -> 60 | AI11: =ROUND(RAND()*(999-119)+119,0) -> 751
C12: (a) | E12: =AH9 -> 7 | G12: x | I12: =AH11 -> 60 | Q12: (b) | S12: =AI11 -> 751 | V12: x | X12: =AI9 -> 8 | AH12: =AH9*AH11 -> 420 | AI12: =AI9*AI11 -> 6008
AH23: =ROUND(RAND()*(9-3)+3,0) -> 7
B24: ="Q2. A full packet of paper contains "&AH25&" sheets of paper. " -> Q2. A full packet of paper contains 228 sheets of paper.
AH25: =ROUND(RAND()*(499-168)+168,0) -> 228
C26: ="How many sheets in "&AH23&" packets." -> How many sheets in 7 packets. | W26: sheets | AH26: =AH23*AH25 -> 1596
AH36: =ROUND(RAND()*(9-3)+3,0) -> 8
B37: ="Q3. A large tea box contains "&AH38&" tea bags." -> Q3. A large tea box contains 661 tea bags.
AH38: =ROUND(RAND()*(900-200)+200,0) -> 661
C39: ="How many are in "&AH36&" boxes" -> How many are in 8 boxes | W39: bags | AH39: =AH36*AH38 -> 5288
AH49: =ROUND(RAND()*(9-3)+3,0) -> 4
B50: ="Q4. The price of a holiday is "&TEXT(AH51,"£0.00")&" person." -> Q4. The price of a holiday is £416.52 person.
AH51: =ROUND(RAND()*(900-200)+200,2) -> 416.52
B52: =" How much will it cost for "&AH49&" people to go on holiday." -> How much will it cost for 4 people to go on holiday. | R52: £ | AH52: =AH49*AH51 -> 1666.08
AH62: =ROUND(RAND()*(9-3)+3,0) -> 6
B63: ="Q5. Shaun gets paid "&TEXT(AH64,"£0.00")&" a month." -> Q5. Shaun gets paid £1555.80 a month.
AH64: =ROUND(RAND()*(3213-1225)+1225,2) -> 1555.8
C65: ="How much does he get paid for "&AH62&" weeks." -> How much does he get paid for 6 weeks. | R65: £ | AH65: =AH62*AH64 -> 9334.8
AH76: =ROUND(RAND()*(8-6)+6,0) -> 6
B77: ="Q6. Mr Lafferty burns "&AH78&" calories an hour at the gym." -> Q6. Mr Lafferty burns 1169.85 calories an hour at the gym.
AH78: =ROUND(RAND()*(1239-602)+602,2) -> 1169.85
C79: ="How many will he burn in "&AH76&" hours" -> How many will he burn in 6 hours | W79: calories | AH79: =AH76*AH78 -> 7019.1
B90: Check that you have shown ALL your working before submitting your work.

Sheet Add_Sub
B2: National 4 AVU Individual Pupil Revision Plan (Percentages)
B5: Name : | V5: Mark : | Z5: /18
B7: Teacher : | F7: Mr Lafferty
AH8: =ROUND(RAND()*(9-3)+3,2) -> 3.21
AH9: =ROUND(RAND()*(9-3)+3,2) -> 3.49
B10: Q1. | C10: ="To make a certain colour of paint "&AH9&" litres of red is mixed with "&AH8&" litres of blue paint." -> To make a certain colour of paint 3.49 litres of red is mixed with 3.21 litres of blue paint. | AH10: =AH8+AH9 -> 6.7
C11: =" I use "&AH11&" litres to paint my room." -> I use 1.82 litres to paint my room. | AH11: =ROUND(RAND()*(3-1)+1,2) -> 1.82
AH12: =AH10-AH11 -> 4.88
C15: How much paint is left over. | W15: litres
AH22: =ROUND(RAND()*(9-3)+3,2) -> 7.64
AH23: =ROUND(RAND()*(9-3)+3,2) -> 3.34
B24: Q2. | C24: ="I spend "&TEXT(AH22,"£0.00")&" on sweets and "&TEXT(AH23,"£0.00")&" on juice." -> I spend £7.64 on sweets and £3.34 on juice. | AH24: =AH22+AH23 -> 10.98
C25: ="I pay for them using a £20 note." -> I pay for them using a £20 note. | AH25: 20
AH26: =AH25-AH24 -> 9.02
C29: How much change should I receive. | R29: £
AH36: =ROUND(RAND()*(9-3)+3,2) -> 6.15
AH37: =ROUND(RAND()*(9-3)+3,2) -> 4.45
B38: Q3. | C38: ="I fruit punch is made with "&AH36&" litres of orange juice and "&AH37&" litres of apple juice." -> I fruit punch is made with 6.15 litres of orange juice and 4.45 litres of apple juice. | AH38: =AH36+AH37 -> 10.6
C39: ="At the end of the day "&AH39&" litres were left." -> At the end of the day 4.07 litres were left. | AH39: =ROUND(RAND()*(5-3)+3,2) -> 4.07
AH40: =AH38-AH39 -> 6.53
C43: How much juice was consumed. | W43: litres
AH50: =ROUND(RAND()*(12-8)+8,2) -> 10.25
AH51: =ROUND(RAND()*(12-7)+7,2) -> 8.91
B52: Q4. | C52: ="John ran "&AH50&" km on Monday and "&AH51&" km on Tuesday." -> John ran 10.25 km on Monday and 8.91 km on Tuesday. | AH52: =AH50+AH51 -> 19.16
C53: ="He was trying to run a total of "&AH53&" km." -> He was trying to run a total of 25 km. | AH53: =ROUND(RAND()*(35-25)+25,0) -> 25
AH54: =AH53-AH52 -> 5.84
C55: How much should he run on Wednesday to make his target.
W57: km
AH64: =ROUND(RAND()*(120-70)+70,1) -> 103.7
AH65: =ROUND(RAND()*(120-80)+80,1) -> 88.9
B66: Q5. | C66: ="On a bus journey, the bus stopped for a morning tea break after "&AH64&" km." -> On a bus journey, the bus stopped for a morning tea break after 103.7 km. | AH66: =ROUND(RAND()*(450-375)+375,0) -> 402
C67: ="It stopped for afternoon break after a further "&AH65&" km." -> It stopped for afternoon break after a further 88.9 km. | AH67: =AH66-(AH64+AH65) -> 209.4
C68: ="The total journey distance was "&AH66&" km." -> The total journey distance was 402 km.
C71: How far did they still have to travel. | W71: km
AH78: =ROUND(RAND()*(60-35)+35,1) -> 56.9
AH79: =ROUND(RAND()*(50-21)+21,1) -> 21.7
B80: Q6. | C80: ="Stuart cycled "&AH78&" km on Thursday and "&AH79&" km on Friday." -> Stuart cycled 56.9 km on Thursday and 21.7 km on Friday. | AH80: =AH78+AH79 -> 78.6
C81: ="He was trying to run a total of "&AH81&" km." -> He was trying to run a total of 143 km. | AH81: =ROUND(RAND()*(150-130)+130,0) -> 143
AH82: =AH81-AH80 -> 64.4
C83: How much should he run on Wednesday to make his target.
W85: km
B95: Check that you have shown ALL your working before submitting your work.

Sheet Equations
B2: National 4 AVU Individual Pupil Revision Plan (Equations)
B5: Name : | V5: Mark : | Z5: /36
B7: Teacher : | F7: Mr Lafferty
B10: Q1. | D10: Solve
U11: =CHAR(RAND()*(106-97)+97) -> e
C12: (a) | E12: =ROUND(RAND()*(10-(5))+(5),0) -> 9 | F12: =CHAR(RAND()*(122-116)+116) -> w | G12: + | H12: =ROUND(RAND()*(30-(5))+(5),0) -> 27 | I12: = | J12: =ROUND(RAND()*(4-(2))+(2),0) -> 4 | K12: =F12 -> w | L12: + | M12: =AH12*E12+H12-J12*AH12 -> 52 | Q12: (b) | T12: =ROUND(RAND()*(10-(5))+(5),0) -> 9 | U12: =CONCATENATE("( ",U11) -> ( e | V12: + | W12: =ROUND(RAND()*(30-(5))+(5),0) -> 28 | X12: ) = | Y12: =T12*AH13+T12*W12 -> 315 | AH12: =ROUND(RAND()*(10-(1))+(1),0) -> 5
AH13: =ROUND(RAND()*(8-(1))+(1),0) -> 7
C15: =F12 -> w | D15: = | U15: =U11 -> e | V15: =
AH23: =ROUND(RAND()*(4-2)+2,0)*10 -> 40
B24: Q2. | D24: Solve
U25: =CHAR(RAND()*(106-97)+97) -> i | AH25: =ROUND(RAND()*(200-21)+21,0)*10 -> 500 | AI25: =ROUND(RAND()*(200-21)+21,0)*10 -> 820
C26: (a) | E26: =ROUND(RAND()*((-1)-(-10))+(-10),0) -> -3 | F26: =CHAR(RAND()*(122-116)+116) -> v | G26: - | H26: =ROUND(RAND()*(30-(5))+(5),0) -> 26 | I26: = | J26: =ROUND(RAND()*((10)-(2))+(2),0) -> 9 | K26: =F26 -> v | L26: - | M26: =-(E26*AH26-H26-(J26*AH26)) -> 194 | Q26: (b) | T26: =ROUND(RAND()*((-1)-(-10))+(-10),0) -> -10 | U26: =CONCATENATE("( ",U25) -> ( i | V26: - | W26: =ROUND(RAND()*(30-(5))+(5),0) -> 29 | X26: ) = | Y26: =T26*AH27-T26*W26 -> 380 | AH26: =ROUND(RAND()*(20-(1))+(1),0) -> 14 | AI26: =AI23/100*AI25 -> 0
AH27: =ROUND(RAND()*((-1)-(-10))+(-10),0) -> -9
C29: =F26 -> v | D29: = | U29: =U25 -> i | V29: =
AH38: =ROUND(RAND()*(4-2)+2,0)*10 -> 40 | AI38: =ROUND(RAND()*(9-6)+6,0)*10 -> 60
B39: Q3. | D39: Solve
U40: =CHAR(RAND()*(106-97)+97) -> g | AH40: =ROUND(RAND()*(200-21)+21,0)*10 -> 1760 | AI40: =ROUND(RAND()*(200-21)+21,0)*10 -> 1860
C41: (a) | E41: =ROUND(RAND()*(10-(5))+(5),0) -> 9 | F41: =CHAR(RAND()*(122-116)+116) -> t | G41: + | H41: =ROUND(RAND()*(30-(5))+(5),0) -> 29 | I41: = | J41: =ROUND(RAND()*(4-(2))+(2),0) -> 4 | K41: =F41 -> t | L41: + | M41: =AH41*E41+H41-J41*AH41 -> 39 | Q41: (b) | T41: =ROUND(RAND()*(10-(5))+(5),0) -> 9 | U41: =CONCATENATE("( ",U40) -> ( g | V41: + | W41: =ROUND(RAND()*(30-(5))+(5),0) -> 10 | X41: ) = | Y41: =T41*AH42+T41*W41 -> 144 | AH41: =ROUND(RAND()*(10-(1))+(1),0) -> 2 | AI41: =AI38/100*AI40 -> 1116
AH42: =ROUND(RAND()*(8-(1))+(1),0) -> 6
C44: =F41 -> t | D44: = | U44: =U40 -> g | V44: =
B53: Q4. | D53: Solve
U54: =CHAR(RAND()*(106-97)+97) -> i
C55: (a) | E55: =ROUND(RAND()*((-1)-(-10))+(-10),0) -> -2 | F55: =CHAR(RAND()*(122-116)+116) -> y | G55: - | H55: =ROUND(RAND()*(30-(5))+(5),0) -> 26 | I55: = | J55: =ROUND(RAND()*((10)-(2))+(2),0) -> 6 | K55: =F55 -> y | L55: - | M55: =-(E55*AH55-H55-(J55*AH55)) -> 66 | Q55: (b) | T55: =ROUND(RAND()*((-1)-(-10))+(-10),0) -> -3 | U55: =CONCATENATE("( ",U54) -> ( i | V55: - | W55: =ROUND(RAND()*(30-(5))+(5),0) -> 30 | X55: ) = | Y55: =T55*AH56-T55*W55 -> 102 | AH55: =ROUND(RAND()*(20-(1))+(1),0) -> 5
AH56: =ROUND(RAND()*((-1)-(-10))+(-10),0) -> -4
C58: =F55 -> y | D58: = | U58: =U54 -> i | V58: =
B68: Q5. | D68: Solve
U69: =CHAR(RAND()*(106-97)+97) -> c
C70: (a) | E70: =ROUND(RAND()*(10-(5))+(5),0) -> 8 | F70: =CHAR(RAND()*(122-116)+116) -> y | G70: + | H70: =ROUND(RAND()*(30-(5))+(5),0) -> 5 | I70: = | J70: =ROUND(RAND()*(4-(2))+(2),0) -> 3 | K70: =F70 -> y | L70: + | M70: =AH70*E70+H70-J70*AH70 -> 35 | Q70: (b) | T70: =ROUND(RAND()*((9)-(-5))+(-5),0) -> 1 | U70: =CONCATENATE("( ",U69) -> ( c | V70: + | W70: =ROUND(RAND()*(15-(1))+(1),0) -> 15 | X70: ) | Y70: - | Z70: =ROUND(RAND()*(20-(5))+(5),0) -> 10 | AA70: = | AB70: =T70*AH71+T70*W70-Z70 -> 10 | AH70: =ROUND(RAND()*(10-(1))+(1),0) -> 6
AH71: =ROUND(RAND()*(8-(1))+(1),0) -> 5
C73: =F70 -> y | D73: = | U73: =U69 -> c | V73: =
B82: Q6. | D82: Solve
U83: =CHAR(RAND()*(106-97)+97) -> d
C84: (a) | E84: =ROUND(RAND()*((-1)-(-10))+(-10),0) -> -7 | F84: =CHAR(RAND()*(122-116)+116) -> x | G84: - | H84: =ROUND(RAND()*(30-(5))+(5),0) -> 26 | I84: = | J84: =ROUND(RAND()*((10)-(2))+(2),0) -> 8 | K84: =F84 -> x | L84: - | M84: =-(E84*AH84-H84-(J84*AH84)) -> 266 | Q84: (b) | T84: =ROUND(RAND()*(9-(2))+(2),0) -> 7 | U84: =CONCATENATE("( ",U83) -> ( d | V84: + | W84: =ROUND(RAND()*(10-(2))+(2),0) -> 8 | X84: ) | Y84: + | Z84: =ROUND(RAND()*(20-(2))+(2),0) -> 10 | AA84: = | AB84: =T84*AH85+T84*W84+Z84 -> 24 | AH84: =ROUND(RAND()*(20-(1))+(1),0) -> 16
AH85: =ROUND(RAND()*((-1)-(-10))+(-10),0) -> -6
C87: =F84 -> x | D87: = | U87: =U83 -> d | V87: =
B99: Check that you have shown ALL your working before submitting your work.

Sheet Composite_Area
B2: National 4 AVU Individual Pupil Revision Plan (Composite Area)
B5: Name : | V5: Mark : | Z5: /30
B7: Teacher : | F7: Mr Lafferty
B10: Q1. Calculate the area of the shape below. | T10: Area = | AB10: m2 | AG10: =ROUND(RAND()*(1-0)+0,0) -> 0
AG11: =ROUND(RAND()*(50-9)+9,0) -> 25 | AH11: =CONCATENATE(AG11," cm") -> 25 cm | AI11: =ROUND(AG11/2,0) -> 13
H12: =AH11 -> 25 cm | AG12: =IF(AG10=0,AI11-ROUND(RAND()*(3-1)+1,0),AI11+ROUND(RAND()*(3-1)+1,0)) -> 10 | AH12: =CONCATENATE(AG12," cm") -> 10 cm
AG13: =AG12+ROUND(RAND()*(3-1)+1,0) -> 11 | AH13: 11 cm
AG14: =(AG12*AG13)+0.5*AG13*(AG11-AG12) -> 192.5
B15: =AH12 -> 10 cm
C18: =AH13 -> 11 cm
B22: Q2. A square shaped garden has a path around the outside. | T22: Area = | AB22: m2
B23: =" Calculate the area of the path given the large square has length "&AH23 -> Calculate the area of the path given the large square has length 16 m | AG23: =ROUND(RAND()*(30-10)+10,0) -> 16 | AH23: =CONCATENATE(AG23," m") -> 16 m | AI23: =ROUND(AG23/2,0) -> 8
B24: =" and the small has length "&AH24&"." -> and the small has length 14 m. | AG24: =AG23-ROUND(RAND()*(5-1)+1,0) -> 14 | AH24: =CONCATENATE(AG24," m") -> 14 m
AG25: =AG23*AG23 -> 256 | AH25: =AG24*AG24 -> 196
AG26: =AG25-AH25 -> 60
B34: Q3. An old victorian door is made from solid wood and has a circular glass window. | AG34: =ROUND(RAND()*(100-60)+60,0) -> 81 | AH34: =CONCATENATE(AG34," cm") -> 81 cm
B35: =" The diameter of the circle is "&AH34&"." -> The diameter of the circle is 81 cm. | AG35: =ROUND(RAND()*(300-230)+230,0) -> 255 | AH35: =CONCATENATE(AG35," cm") -> 255 cm
B36: =AH36 -> 128 cm | I36: Calculate the area of the wood used to the nearest whole number. | AG36: =ROUND(RAND()*(140-110)+110,0) -> 128 | AH36: 128 cm
AG37: =ROUND(AG36*AG35-(PI()*POWER(AG34/2,2)),0) -> 27487
G38: =AH35 -> 255 cm | T38: Area = | AA38: cm2
B49: Q4. A logo for a company is made up of a rectangle with a semi-circle cut out from it. | AG49: =ROUND(RAND()*(60-10)+10,0) -> 55 | AH49: =CONCATENATE(AG49," cm") -> 55 cm
B50: =" The diameter of the circle is "&AH49&". Calculate the area of the logo to the nearest whole number." -> The diameter of the circle is 55 cm. Calculate the area of the logo to the nearest whole number. | AG50: =ROUND(1.5*AG49,0) -> 83 | AH50: =CONCATENATE(AG50," cm") -> 83 cm
B52: =AH50 -> 83 cm | T52: Area = | AB52: cm2 | AG52: =ROUND(AG50*AG49-0.5*(PI()*POWER(AG49/2,2)),0) -> 3377
B64: ="Q5. A circle is encased in a square. " -> Q5. A circle is encased in a square. | AG64: =ROUND(RAND()*(60-10)+10,0) -> 46 | AH64: =CONCATENATE(AG64," cm") -> 46 cm
B65: ="Calculate the shaded area to the nearest whole number if the length ofthe square is "&AH64&"." -> Calculate the shaded area to the nearest whole number if the length ofthe square is 46 cm.
T67: Area | AB67: cm2 | AG67: =ROUND(AG64*AG64-PI()*POWER(AG64/2,2),0) -> 454
B79: ="Q6. A railway bridge is made from a rectangle and a semi-circle." -> Q6. A railway bridge is made from a rectangle and a semi-circle. | AG79: =ROUND(RAND()*(60-30)+30,0) -> 58 | AH79: =CONCATENATE(AG79," m") -> 58 m
B80: Calculate the shaded area to the nearest whole number. | AG80: =ROUND(AG79/3,0) -> 19 | AH80: =CONCATENATE(AG80," m") -> 19 m
AG81: =ROUND(AG79/2+ROUND(RAND()*(7-2)+2,0),0) -> 34 | AH81: 34 m
B82: =AH79 -> 58 m | T82: Area = | AB82: m2 | AG82: =ROUND(AG79*AG80-0.5*PI()*POWER(AG81/2,2),0) -> 648
I84: =AH80 -> 19 m
B89: =AH81 -> 34 m
B95: Check that you have shown ALL your working before submitting your work.

Sheet DST
B2: National 4 AVU Individual Pupil Revision Plan (Distance Speed Time)
B5: Name : | V5: Mark : | Z5: /16
B7: Teacher : | F7: Mr Lafferty
AH9: =ROUND(RAND()*(99-11)+11,0)*6 -> 198 | AI9: =AH9/60 -> 3.3 | AJ9: =MOD(AH9,60) -> 18 | AK9: =TRUNC(AI9,0) -> 3
B10: Q1. | C10: Convert these times to decimal hours | AH10: =ROUND(RAND()*(99-11)+11,0)*6 -> 396 | AI10: =AH10/60 -> 6.6 | AJ10: =MOD(AH10,60) -> 36 | AK10: =TRUNC(AI10,0) -> 6
C12: (a) | E12: =AK9 -> 3 | F12: hours | I12: =AJ9 -> 18 | J12: minutes | Q12: (b) | S12: =AK10 -> 6 | T12: hours | W12: =AJ10 -> 36 | X12: minutes | AH12: =AI8 -> 0
I15: hours | W15: hours
AH23: =ROUND(RAND()*(99-11)+11,0)*6 -> 312 | AI23: =AH23/60 -> 5.2 | AJ23: =MOD(AH23,60) -> 12 | AK23: =TRUNC(AI23,0) -> 5
B24: Q2. | C24: Convert these times to hours and minutes. | AH24: =ROUND(RAND()*(99-11)+11,0)*6 -> 108 | AI24: =AH24/60 -> 1.8 | AJ24: =MOD(AH24,60) -> 48 | AK24: =TRUNC(AI24,0) -> 1
C26: (a) | E26: =AI23 -> 5.2 | G26: hours | Q26: (b) | S26: =AI24 -> 1.8 | U26: hours
F29: hours | J29: minutes | T29: hours | X29: minutes
AH37: =ROUND(RAND()*(180-1)+1,0)*6 -> 690 | AI37: =AH37/60 -> 11.5 | AJ37: =MOD(AH37,60) -> 30 | AK37: =TRUNC(AI37,0) -> 11 | AL37: =IF(AK37<10,CONCATENATE("0",AK37),AK37) -> 11 | AM37: =IF(AJ37<10,CONCATENATE("0",AJ37),AJ37) -> 30
B38: Q3. | C38: ="A bus left Kirkintilloch at "&AI42&" and arrived in Whithorn City at "&AI43&"." -> A bus left Kirkintilloch at 11:30 and arrived in Whithorn City at 16:18. | AH38: =ROUND(RAND()*(50-30)+30,0)*6 -> 288 | AI38: =AH38/60 -> 4.8 | AJ38: =MOD(AH38,60) -> 48 | AK38: =TRUNC(AI38,0) -> 4 | AL38: =IF(AK38<10,CONCATENATE("0",AK38),AK38) -> 04 | AM38: =IF(AJ38<10,CONCATENATE("0",AJ38),AJ38) -> 48
C39: ="The distance from Kirkintilloch to Whithorn City is "&AI45&" km." -> The distance from Kirkintilloch to Whithorn City is 249.6 km. | AH39: =AJ41 -> 978 | AI39: =AH39/60 -> 16.3 | AJ39: =MOD(AH39,60) -> 18 | AK39: =TRUNC(AI39,0) -> 16 | AL39: =IF(AK39<10,CONCATENATE("0",AK39),AK39) -> 16 | AM39: 18
AI40: =TIME(AK37,AJ37,0) -> 11:30:00 | AJ40: =TIME(AK38,AJ38,0) -> 04:48:00
AI41: =AI40+AJ40 -> 16:18:00 | AJ41: =60*HOUR(AI41)+MINUTE(AI41) -> 978
AI42: =CONCATENATE(AL37,":",AM37) -> 11:30
C43: What was the average speed of the bus. | W43: km/hr | AI43: =CONCATENATE(AL39,":",AM39) -> 16:18
AI44: =ROUND(RAND()*(70-50)+50,0) -> 52
AI45: =AI44*AI38 -> 249.6
AH51: =ROUND(RAND()*(180-1)+1,0)*6 -> 258 | AI51: =AH51/60 -> 4.3 | AJ51: =MOD(AH51,60) -> 18 | AK51: =TRUNC(AI51,0) -> 4 | AL51: =IF(AK51<10,CONCATENATE("0",AK51),AK51) -> 04 | AM51: =IF(AJ51<10,CONCATENATE("0",AJ51),AJ51) -> 18
B52: Q4. | C52: ="A bus left Glasgow at "&AI56&" and arrived in Blog Town at "&AI57&"." -> A bus left Glasgow at 04:18 and arrived in Blog Town at 07:42. | AH52: =ROUND(RAND()*(50-30)+30,0)*6 -> 204 | AI52: =AH52/60 -> 3.4 | AJ52: =MOD(AH52,60) -> 24 | AK52: =TRUNC(AI52,0) -> 3 | AL52: =IF(AK52<10,CONCATENATE("0",AK52),AK52) -> 03 | AM52: =IF(AJ52<10,CONCATENATE("0",AJ52),AJ52) -> 24
C53: ="The bus travelled at an average speed of "&AI58&" km/hr." -> The bus travelled at an average speed of 53 km/hr. | AH53: =AJ55 -> 462 | AI53: =AH53/60 -> 7.7 | AJ53: =MOD(AH53,60) -> 42 | AK53: =TRUNC(AI53,0) -> 7 | AL53: =IF(AK53<10,CONCATENATE("0",AK53),AK53) -> 07 | AM53: 42
AI54: =TIME(AK51,AJ51,0) -> 04:18:00 | AJ54: =TIME(AK52,AJ52,0) -> 03:24:00
AI55: =AI54+AJ54 -> 07:42:00 | AJ55: =60*HOUR(AI55)+MINUTE(AI55) -> 462
AI56: =CONCATENATE(AL51,":",AM51) -> 04:18
C57: How far is it from Glasgow to Blog Town. | W57: km | AI57: =CONCATENATE(AL53,":",AM53) -> 07:42
AI58: =ROUND(RAND()*(70-50)+50,0) -> 53
AI59: =AI58*AI52 -> 180.2
AH65: =ROUND(RAND()*(180-1)+1,0)*6 -> 150 | AI65: =AH65/60 -> 2.5 | AJ65: =MOD(AH65,60) -> 30 | AK65: =TRUNC(AI65,0) -> 2 | AL65: =IF(AK65<10,CONCATENATE("0",AK65),AK65) -> 02 | AM65: =IF(AJ65<10,CONCATENATE("0",AJ65),AJ65) -> 30
B66: Q5. | C66: ="A train left Edinburgh at "&AI70&" and arrived in Kingsbridge at "&AI71&"." -> A train left Edinburgh at 02:30 and arrived in Kingsbridge at 07:06. | AH66: =ROUND(RAND()*(50-30)+30,0)*6 -> 276 | AI66: =AH66/60 -> 4.6 | AJ66: =MOD(AH66,60) -> 36 | AK66: =TRUNC(AI66,0) -> 4 | AL66: =IF(AK66<10,CONCATENATE("0",AK66),AK66) -> 04 | AM66: =IF(AJ66<10,CONCATENATE("0",AJ66),AJ66) -> 36
C67: ="The train travelled at an average speed of "&AI72&" km/hr." -> The train travelled at an average speed of 76 km/hr. | AH67: =AJ69 -> 426 | AI67: =AH67/60 -> 7.1 | AJ67: =MOD(AH67,60) -> 6 | AK67: =TRUNC(AI67,0) -> 7 | AL67: =IF(AK67<10,CONCATENATE("0",AK67),AK67) -> 07 | AM67: 06
AI68: =TIME(AK65,AJ65,0) -> 02:30:00 | AJ68: =TIME(AK66,AJ66,0) -> 04:36:00
AI69: =AI68+AJ68 -> 07:06:00 | AJ69: =60*HOUR(AI69)+MINUTE(AI69) -> 426
AI70: =CONCATENATE(AL65,":",AM65) -> 02:30
C71: How far is it from Edinburgh to Kingsbridge. | W71: km | AI71: =CONCATENATE(AL67,":",AM67) -> 07:06
AI72: =ROUND(RAND()*(90-50)+50,0) -> 76
AI73: =AI72*AI66 -> 349.6
AH79: =ROUND(RAND()*(180-1)+1,0)*6 -> 90 | AI79: =AH79/60 -> 1.5 | AJ79: =MOD(AH79,60) -> 30 | AK79: =TRUNC(AI79,0) -> 1 | AL79: =IF(AK79<10,CONCATENATE("0",AK79),AK79) -> 01 | AM79: =IF(AJ79<10,CONCATENATE("0",AJ79),AJ79) -> 30
B80: Q6. | C80: ="A plane left Glasgow Airport at "&AI84&" bound for the Venice." -> A plane left Glasgow Airport at 01:30 bound for the Venice. | AH80: =ROUND(RAND()*(50-30)+30,0)*6 -> 246 | AI80: =AH80/60 -> 4.1 | AJ80: =MOD(AH80,60) -> 6 | AK80: =TRUNC(AI80,0) -> 4 | AL80: =IF(AK80<10,CONCATENATE("0",AK80),AK80) -> 04 | AM80: =IF(AJ80<10,CONCATENATE("0",AJ80),AJ80) -> 06
C81: ="It arrived at "&AI85&". It had travelled a distance of "&AI87&" km." -> It arrived at 05:36. It had travelled a distance of 1963.9 km. | AH81: =AJ83 -> 336 | AI81: =AH81/60 -> 5.6 | AJ81: =MOD(AH81,60) -> 36 | AK81: =TRUNC(AI81,0) -> 5 | AL81: =IF(AK81<10,CONCATENATE("0",AK81),AK81) -> 05 | AM81: 36
AI82: =TIME(AK79,AJ79,0) -> 01:30:00 | AJ82: =TIME(AK80,AJ80,0) -> 04:06:00
AI83: =AI82+AJ82 -> 05:36:00 | AJ83: =60*HOUR(AI83)+MINUTE(AI83) -> 336
AI84: =CONCATENATE(AL79,":",AM79) -> 01:30
C85: Calculate the planes average speed. | W85: km/hr | AI85: =CONCATENATE(AL81,":",AM81) -> 05:36
AI86: =ROUND(RAND()*(600-400)+400,0) -> 479
AI87: =AI86*AI80 -> 1963.9
B95: Check that you have shown ALL your working before submitting your work.

Sheet Linear_Patterns
B2: National 4 AVU Individual Pupil Revision Plan (Linear Patterns)
B5: Name : | V5: Mark : | Z5: /33
B7: Teacher : | F7: Mr Lafferty
B10: Q1. A metal fence for a garden is made by joining iron bars together.
B11: The table shows the link between the number of sections and the number of iron bars.
AT12: =ROUND(RAND()*(9-2)+2,0) -> 2
B13: Number of sections (S) | J13: 1 | L13: 2 | N13: 3 | P13: 4 | T13: =AX14 -> 16 | AT13: =ROUND(RAND()*(9-2)+2,0) -> 3
B14: Number of iron bars (B) | J14: =AT15 -> 5 | L14: =AU15 -> 8 | AS14: s | AT14: 1 | AU14: 2 | AV14: 3 | AW14: 4 | AX14: =ROUND(RAND()*(20-11)+11,0) -> 16
AS15: b | AT15: =AT14*$AT$13+$AT$12 -> 5 | AU15: =AU14*$AT$13+$AT$12 -> 8 | AV15: 11 | AW15: 14 | AX15: 50
B16: (a) Complete the table above.
B18: (b) Find a formula for calculating the number of bars (B), when you know the number of sections (S). | AT18: b | AU18: = | AV18: =AT13 -> 3 | AW18: s | AX18: + | AY18: =AT12 -> 2
B22: ="(c) A fence is made up by joining "&AS22&" iron bars. How many sections are in this fence." -> (c) A fence is made up by joining 86 iron bars. How many sections are in this fence. | AS22: =AT13*AT22+AT12 -> 86 | AT22: =ROUND(RAND()*(40-25)+25,0) -> 28
D24: Sections =
B28: Q2. The sides of a bridge are constructed by joining sections. The sections are made of steel girders.
B29: The table shows the link between the number of sections and the number of girders.
AT30: =ROUND(RAND()*(9-4)+4,0) -> 5
B31: Number of sections (S) | J31: 1 | L31: 2 | N31: 3 | P31: 4 | T31: =AX32 -> 16 | AT31: =AT30-ROUND(RAND()*(3-1)+1,0) -> 2
B32: Number of girders (G) | J32: =AT33 -> 3 | L32: =AU33 -> 8 | AS32: s | AT32: 1 | AU32: 2 | AV32: 3 | AW32: 4 | AX32: =ROUND(RAND()*(20-11)+11,0) -> 16
AS33: g | AT33: =AT32*$AT$30-$AT$31 -> 3 | AU33: =AU32*$AT$30-$AT$31 -> 8 | AV33: 13 | AW33: 18 | AX33: 78
B34: (a) Complete the table above.
B36: (b) Find a formula for calculating the number of girders (G), when you know the number of sections (S). | AT36: g | AU36: = | AV36: =AT30 -> 5 | AW36: s | AX36: - | AY36: =AT31 -> 2
B40: ="(c) A bridge has "&AT40&" sections. How many girders are there." -> (c) A bridge has 28 sections. How many girders are there. | AS40: =AT30*AT40-AT31 -> 138 | AT40: =ROUND(RAND()*(40-25)+25,0) -> 28
D42: Girders =
B46: Q3. A designer is looking at the table and seating arrangements for a large office block.
B47: The link between the number of tables and the number of chairs is given below.
AT48: =ROUND(RAND()*(9-2)+2,0) -> 4
B49: Number of tables (T) | J49: 1 | L49: 2 | N49: 3 | P49: 4 | T49: =AX50 -> 12 | AT49: =ROUND(RAND()*(9-2)+2,0) -> 9
B50: Number of chairs (C) | J50: =AT51 -> 13 | L50: =AU51 -> 17 | AS50: t | AT50: 1 | AU50: 2 | AV50: 3 | AW50: 4 | AX50: =ROUND(RAND()*(20-11)+11,0) -> 12
AS51: c | AT51: =AT50*$AT$48+$AT$49 -> 13 | AU51: =AU50*$AT$48+$AT$49 -> 17 | AV51: 21 | AW51: 25 | AX51: 57
B52: (a) Complete the table above.
B54: (b) Find a formula for calculating the number of chairs (C), when you know the number of tables (T). | AT54: c | AU54: = | AV54: =AT48 -> 4 | AW54: t | AX54: + | AY54: =AT49 -> 9
B58: ="(c) Given we have "&AS58&" chairs. How many tables are there." -> (c) Given we have 109 chairs. How many tables are there. | AS58: =AT48*AT58+AT49 -> 109 | AT58: =ROUND(RAND()*(40-25)+25,0) -> 25
D60: Tables =
B64: Q4. This table shows the cost of hiring a carpet cleaner for several days.
AT66: =ROUND(RAND()*(20-12)+12,0) -> 19
B67: Number of days (D) | J67: 1 | L67: 2 | N67: 3 | P67: 4 | T67: =AX68 -> 15 | AT67: =ROUND(RAND()*(9-1)+1,0) -> 7
B68: Cost £ (C) | J68: =AT69 -> 12 | L68: =AU69 -> 31 | AS68: D | AT68: 1 | AU68: 2 | AV68: 3 | AW68: 4 | AX68: =ROUND(RAND()*(20-11)+11,0) -> 15
AS69: C | AT69: =AT68*$AT$66-$AT$67 -> 12 | AU69: =AU68*$AT$66-$AT$67 -> 31 | AV69: 50 | AW69: 69 | AX69: 278
B70: (a) Complete the table above.
B72: (b) Find a formula for calculating the cost (C), when you know the number of days hire (D). | AT72: C | AU72: = | AV72: =AT66 -> 19 | AW72: D | AX72: - | AY72: =AT67 -> 7
B76: ="(c) How much will it cost £ to hire for "&AT76&" days." -> (c) How much will it cost £ to hire for 28 days. | AS76: =AT66*AT76-AT67 -> 525 | AT76: =ROUND(RAND()*(40-25)+25,0) -> 28
D78: Cost £
B82: Q5. A play area is to be fence.
B83: The table shows the link between the number of sections and the number of wooden lengths.
AT84: =ROUND(RAND()*(9-2)+2,0) -> 6
B85: Number of sections (S) | J85: 1 | L85: 2 | N85: 3 | P85: 4 | T85: =AX86 -> 18 | AT85: =ROUND(RAND()*(9-2)+2,0) -> 3
B86: Number of lengths of wood (W) | J86: =AT87 -> 9 | L86: =AU87 -> 12 | AS86: S | AT86: 1 | AU86: 2 | AV86: 3 | AW86: 4 | AX86: =ROUND(RAND()*(20-11)+11,0) -> 18
AS87: W | AT87: =AT86*$AT$85+$AT$84 -> 9 | AU87: =AU86*$AT$85+$AT$84 -> 12 | AV87: 15 | AW87: 18 | AX87: 60
B88: (a) Complete the table above.
B90: (b) Find a formula for calculating the number of lengths of wood (W) , when you know the number of sections (S). | AT90: W | AU90: = | AV90: =AT85 -> 3 | AW90: S | AX90: + | AY90: =AT84 -> 6
B94: ="(c) A fence is made up by joining "&AS94&" lengths of wood (W). How many sections are in this fence." -> (c) A fence is made up by joining 120 lengths of wood (W). How many sections are in this fence. | AS94: =AT85*AT94+AT84 -> 120 | AT94: =ROUND(RAND()*(40-25)+25,0) -> 38
D96: Sections =
B100: Q6. This table shows the cost of hiring a van for several days.
B101: The table shows the link between the cost (C) and the number of days (D).
AT102: =ROUND(RAND()*(40-15)+15,0) -> 30
B103: Number of days (D) | J103: 1 | L103: 2 | N103: 3 | P103: 4 | T103: =AX104 -> 18 | AT103: =ROUND(RAND()*(10-3)+3,0) -> 5
B104: Cost £ (C) | J104: =AT105 -> 35 | L104: =AU105 -> 65 | AS104: D | AT104: 1 | AU104: 2 | AV104: 3 | AW104: 4 | AX104: =ROUND(RAND()*(20-11)+11,0) -> 18
AS105: C | AT105: =AT104*$AT$102+$AT$103 -> 35 | AU105: =AU104*$AT$102+$AT$103 -> 65 | AV105: 95 | AW105: 125 | AX105: 545
B106: (a) Complete the table above.
B108: (b) Find a formula for calculating the cost (C) , when you know the number of days (D) hired. | AT108: C | AU108: = | AV108: =AT102 -> 30 | AW108: D | AX108: + | AY108: =AT103 -> 5
B112: ="(c) How much will it cost to hire a van for "&AT112&" days." -> (c) How much will it cost to hire a van for 40 days. | AS112: =AT102*AT112+AY108 -> 1205 | AT112: =ROUND(RAND()*(40-25)+25,0) -> 40
D114: Cost £
B118: Check that you have shown ALL your working before submitting your work.

Sheet Pythagoras
B2: National 4 AVU Individual Pupil Revision Plan (Pythagoras Theorem)
B5: Name : | V5: Mark : | Z5: /36
B7: Teacher : | F7: Mr Lafferty
AH8: 3
AH9: 4
B10: Q1. | C10: An athlete runs round a course which is in the shape of a right - angled triangle. | AH10: 5
C11: Calculate the full distance he ran. | AH11: =ROUND(RAND()*(900-100)+100,0) -> 884 | AI11: =CONCATENATE(AH11,"m") -> 884m
AH12: =AH8*AH11 -> 2652 | AI12: =CONCATENATE(AH12," m") -> 2652 m
AH13: =AH9*AH11 -> 3536 | AI13: =CONCATENATE(AH13," m") -> 3536 m
P14: =AI12 -> 2652 m | AH14: =5*AH11 -> 4420
D15: Start /
D16: Finish
G18: =AI13 -> 3536 m | Z18: m | AH18: =AH14+AH13+AH12 -> 10608
AH25: 3
AH26: 4
B27: Q2. | C27: Calculate the perimeter of this isosceles triangle. | AH27: 5
AH28: =ROUND(RAND()*(99-10)+10,0) -> 83 | AI28: =CONCATENATE(AH28,"cm") -> 83cm
P29: =AI29 -> 249 cm | AH29: =AH25*AH28 -> 249 | AI29: =CONCATENATE(AH29," cm") -> 249 cm
AH30: =AH26*AH28 -> 332 | AI30: =CONCATENATE(AH30," cm") -> 332 cm
AH31: =5*AH28 -> 415
AH32: =AH30*2 -> 664 | AI32: =CONCATENATE(AH32," cm") -> 664 cm
G35: =AI32 -> 664 cm | Z35: cm | AH35: =AH32+2*AH31 -> 1494
AH42: 3
AH43: 4
B44: Q3. | C44: ="In a yachting race a boat travelled East for "&AH45&" km. Then travels North for "&AH46&" km." -> In a yachting race a boat travelled East for 11 km. Then travels North for 33 km. | AH44: 5
C45: =" It then turned and followed a direct path home. Calculate the TOTAL distance travelled." -> It then turned and followed a direct path home. Calculate the TOTAL distance travelled. | AH45: =ROUND(RAND()*(20-1)+1,0) -> 11 | AI45: =CONCATENATE(AH45,"km") -> 11km
D46: =AI47 -> 44 km | AH46: =AH42*AH45 -> 33 | AI46: =CONCATENATE(AH46," km") -> 33 km
AH47: =AH43*AH45 -> 44 | AI47: =CONCATENATE(AH47," km") -> 44 km
AH48: =5*AH45 -> 55
G52: =AI46 -> 33 km | Z52: km | AH52: =AH46+AH47+AH48 -> 132
AH59: 3
AH60: 4
B61: Q4. | C61: Calculate the perimeter of the isosceles triangle. | AH61: 5
J62: =AI66 -> 18 cm | AH62: =ROUND(RAND()*(20-1)+1,0) -> 3 | AI62: =CONCATENATE(AH62," cm") -> 3 cm
D63: =AI64 -> 12 cm | AH63: =AH59*AH62 -> 9 | AI63: =CONCATENATE(AH63," cm") -> 9 cm
AH64: =AH60*AH62 -> 12 | AI64: =CONCATENATE(AH64," cm") -> 12 cm
AH65: =5*AH62 -> 15 | AI65: =CONCATENATE(AH65," cm") -> 15 cm
AH66: =2*AH63 -> 18 | AI66: =CONCATENATE(AH66," cm") -> 18 cm
Z69: cm | AH69: =AH66+2*AH65 -> 48
AH76: 3
AH77: 4
B78: Q5. | C78: At Football training the players had to run round a right-angled triangular course. | AH78: 5
C79: ="If they had to complete "&AH83&" circuits. How far did they run." -> If they had to complete 3 circuits. How far did they run. | AH79: =ROUND(RAND()*(30-10)+10,0) -> 25 | AI79: =CONCATENATE(AH79,"m") -> 25m
D80: =AI81 -> 100 m | AH80: =AH76*AH79 -> 75 | AI80: =CONCATENATE(AH80," m") -> 75 m
AH81: =AH77*AH79 -> 100 | AI81: =CONCATENATE(AH81," m") -> 100 m
AH82: =5*AH79 -> 125
AH83: =ROUND(RAND()*(5-2)+2,0) -> 3
G86: =AI80 -> 75 m | Z86: m | AH86: =(AH81+AH82+AH80)*AH83 -> 900
AH94: 3
AH95: 4
B96: Q6. | C96: A pair of isosceles earings are made from gold wire as shown below. | AH96: 5
C97: How much gold wire will be needed for the pair.
J98: =AI102 -> 24 mm | AH98: =ROUND(RAND()*(7-1)+1,0) -> 4 | AI98: =CONCATENATE(AH98," mm") -> 4 mm
D99: =AI100 -> 16 mm | AH99: =AH94*AH98 -> 12 | AI99: =CONCATENATE(AH99," mm") -> 12 mm
AH100: =AH95*AH98 -> 16 | AI100: =CONCATENATE(AH100," mm") -> 16 mm
AH101: =5*AH98 -> 20 | AI101: =CONCATENATE(AH101," mm") -> 20 mm
AH102: =2*AH99 -> 24 | AI102: =CONCATENATE(AH102," mm") -> 24 mm
Z105: mm | AH105: =(AH102+2*AH101)*2 -> 128
AH112: 3
B114: Check that you have shown ALL your working before submitting your work.

Sheet SOHCAHTOA
B2: National 4 AVU Individual Pupil Revision Plan (SOHCAHTOA) | AH2: =ROUND(RAND()*(106-97)+97,0) -> 106
AH3: =ROUND(RAND()*(1-0)+0,0) -> 1 | AI3: =ROUND(RAND()*(3-1)+1,0) -> 3 | AJ3: =CONCATENATE(AH3,AI3) -> 13
AH4: =IF(AH3=1,F16,O12) -> J
B5: Name : | V5: Mark : | Z5: /36
AH6: =ROUND(RAND()*(20-5)+5,0) -> 20 | AI6: =IF(AJ3="11",CONCATENATE(AH6," m"),IF(AJ3="02",CONCATENATE(AH6," m"),IF(AJ3="03",CONCATENATE(AH6," m"),IF(AJ3="13",CONCATENATE(AH6," m"),"")))) -> 20 m
B7: Teacher : | F7: Mr Lafferty | AH7: =ROUND(AH6*ROUND(RAND()*(3-1.5)+1.5,1),0) -> 52 | AI7: =IF(AJ3="12",CONCATENATE(AH7," m"),IF(AJ3="01",CONCATENATE(AH7," m"),IF(AJ3="03",CONCATENATE(AH7," m"),IF(AJ3="13",CONCATENATE(AH7," m"),"")))) -> 52 m
AH8: =ROUND(SQRT((AH6*AH6)+(AH7*AH7)),0) -> 56 | AI8: =IF(AJ3="03","",IF(AJ3="13","",CONCATENATE(AH8," m"))) -> 
B10: Q1. | C10: ="Find the size of the angle at "&AH4&" to the nearest degree." -> Find the size of the angle at J to the nearest degree.
O12: =UPPER(CHAR(AH2+1)) -> K
H13: =AI8 -> 
P14: =AI6 -> 20 m
F16: =UPPER(CHAR(AH2)) -> J
O17: =UPPER(CHAR(AH2+2)) -> L
G18: =AI7 -> 52 m | Z18: o | AH18: =IF(AJ3="01",ROUND(DEGREES(ASIN(AH7/AH8)),0),IF(AJ3="02",ROUND(DEGREES(ACOS(AH6/AH8)),0),IF(AJ3="03",ROUND(DEGREES(ATAN(AH7/AH6)),0),IF(AJ3="11",ROUND(DEGREES(ASIN(AH6/AH8)),0),IF(AJ3="12",ROUND(DEGREES(ACOS(AH7/AH8)),0),IF(AJ3="13",ROUND(DEGREES(ATAN(AH6/AH7)),0),"")))))) -> 21
AH26: =ROUND(RAND()*(106-97)+97,0) -> 105
B27: Q2. | C27: ="Find the length of "&AH29&" to the metre." -> Find the length of KJ to the metre. | AH27: =ROUND(RAND()*(1-0)+0,0) -> 0 | AI27: =ROUND(RAND()*(3-1)+1,0) -> 3 | AJ27: =CONCATENATE(AH27,AI27) -> 03
I28: =AK31 ->  | AH28: =IF(AH27=1,O29,F33) -> I
F29: =UPPER(CHAR(AH26+2)) -> K | O29: =UPPER(CHAR(AH26+1)) -> J | AH29: =IF(AO30=1,CONCATENATE(F33,F29),IF(AO31=1,CONCATENATE(F29,O29),IF(AO32=1,CONCATENATE(O29,F33)))) -> KJ
K30: =IF(AH27=0,AH35,"") -> 71 | M30: o | AH30: =ROUND(RAND()*(20-5)+5,0) -> 18 | AI30: =IF(AJ27="11",CONCATENATE(AH30," m"),IF(AJ27="02",CONCATENATE(AH30," m"),IF(AJ27="03",CONCATENATE(AH30," m"),IF(AJ27="13",CONCATENATE(AH30," m"),"")))) -> 18 m | AJ30: =IF(AI30="","",AH30) -> 18 | AK30: =IF(AJ31="","",AI30) -> 18 m | AL30: =IF(AK30="",0,1) -> 1 | AM30: =IF(AJ30="","",AI30) -> 18 m | AO30: =IF(AL30=0,IF(AM30<>"",1,""),"") -> 
D31: =AK30 -> 18 m | AH31: =ROUND(AH30*ROUND(RAND()*(3-1.5)+1.5,1),0) -> 52 | AI31: =IF(AJ27="12",CONCATENATE(AH31," m"),IF(AJ27="01",CONCATENATE(AH31," m"),IF(AJ27="03",CONCATENATE(AH31," m"),IF(AJ27="13",CONCATENATE(AH31," m"),"")))) -> 52 m | AJ31: =IF(AI31="","",AH31) -> 52 | AK31: =IF(AJ30<>"","",AI31) ->  | AL31: =IF(AK31="",0,1) -> 0 | AM31: =IF(AJ31="","",AI31) -> 52 m | AO31: 1
G32: =IF(AH27=1,AH35,"") ->  | I32: o | J32: =AK32 ->  | AH32: =ROUND(SQRT((AH30*AH30)+(AH31*AH31)),0) -> 55 | AI32: =IF(AJ27="03","",IF(AJ27="13","",CONCATENATE(AH32," m"))) ->  | AK32: =IF(AJ30="","",AI32) ->  | AL32: 0 | AO32: =IF(AL32=0,IF(AM32<>"",1,""),"") -> 
F33: =UPPER(CHAR(AH26)) -> I
Z35: m | AH35: =IF(AJ27="01",ROUND(DEGREES(ASIN(AH31/AH32)),0),IF(AJ27="02",ROUND(DEGREES(ACOS(AH30/AH32)),0),IF(AJ27="03",ROUND(DEGREES(ATAN(AH31/AH30)),0),IF(AJ27="11",ROUND(DEGREES(ASIN(AH30/AH32)),0),IF(AJ27="12",ROUND(DEGREES(ACOS(AH31/AH32)),0),IF(AJ27="13",ROUND(DEGREES(ATAN(AH30/AH31)),0),"")))))) -> 71 | AI35: =IF(AO30=1,AH30,IF(AO31=1,AH31,IF(AO32=1,AH32,""))) -> 52
B44: Q3. | C44: For the isosceles traingle below calculate the size of xo to the nearest degree.
I48: =AI50 -> 144.6 cm | AH48: =2*ROUND(RAND()*(100-10)+10,0) -> 174 | AI48: =CONCATENATE(AH48," cm") -> 174 cm
AH49: =AH48/2 -> 87 | AI49: =CONCATENATE(AH49," cm") -> 87 cm
AH50: =ROUND(AH49/COS(AH52*PI()/180),1) -> 144.6 | AI50: =CONCATENATE(AH50," cm") -> 144.6 cm
K51: xo
M52: =AI48 -> 174 cm | Z52: o | AH52: =ROUND(RAND()*(70-26)+26,0) -> 53
B61: Q4. | C61: Calculate the size of angle yo given the triangle is isosceles.
J62: =AI65 -> 152 cm
D63: =AI67 -> 179 cm
M64: y | N64: o
AH65: =2*ROUND(RAND()*(100-10)+10,0) -> 152 | AI65: =CONCATENATE(AH65," cm") -> 152 cm
AH66: =AH65/2 -> 76 | AI66: =CONCATENATE(AH66," cm") -> 76 cm
U67: to the nearest degree | AH67: =ROUND(AH66*TAN(AH69*PI()/180),1) -> 179 | AI67: =CONCATENATE(AH67," cm") -> 179 cm
Z69: o | AH69: =ROUND(RAND()*(70-26)+26,0) -> 67
B78: Q5. | C78: The sketch below shows a ramp at the back of a van.
C79: Given the dimensions calculate size of angle xo to the nearest degree.
M83: =AI84 -> 4.92 m | R83: =AI83 -> 0.6 m | AH83: =2*ROUND(RAND()*(2-0.4)*0.4,1) -> 0.6 | AI83: =CONCATENATE(AH83," m") -> 0.6 m
AH84: =ROUND(AH83/SIN(AH86*PI()/180),2) -> 4.92 | AI84: =CONCATENATE(AH84," m") -> 4.92 m
N85: xo
Z86: o | AH86: =ROUND(RAND()*(20-4)+4,0) -> 7
B96: Q6. | C96: ="The angle of elevation from the ground to the top of a block of flats is "&AH103&" degrees." -> The angle of elevation from the ground to the top of a block of flats is 30 degrees.
C97: Calculate the height of the block of flats to the nearest metre.
G100: h
AH102: =ROUND(RAND()*(200-30)+30,0) -> 34 | AI102: =CONCATENATE(AH102," m") -> 34 m
AH103: =ROUND(RAND()*(60-10)+10,0) -> 30
P104: =AH103 -> 30 | R104: o
N105: =AI102 -> 34 m | Z105: m | AH105: =ROUND(AH102*TAN(AH103*PI()/180),0) -> 20
B114: Check that you have shown ALL your working before submitting your work.

Sheet Coordinates
B2: National 4 AVU Individual Pupil Revision Plan (Coordinates)
AF4: =ROUND(RAND()*(106-97)+97,0) -> 106
B5: Name : | V5: Mark : | Z5: /24 | AF5: =UPPER(CHAR(AF4)) -> J
AF6: =UPPER(CHAR(AF4+1)) -> K
B7: Teacher : | F7: Mr Lafferty | L7: ( If doing online you need to use your jotter to plot points) | AF7: =UPPER(CHAR(AF4+2)) -> L | AH7: S | AI7: LR | AJ7: UD | AP7: S | AQ7: LR | AR7: UD | AX7: S | AY7: LR | AZ7: UD | BF7: S | BG7: LR | BH7: UD | BN7: S | BO7: LR | BP7: UD | BQ7: S
AF8: =UPPER(CHAR(AF4+3)) -> M | AH8: =ROUND(RAND()*(5-2)+2,0) -> 2 | AI8: =ROUND(RAND()*(5-(-5))+(-5),0) -> 1 | AJ8: =ROUND(RAND()*(5-(-5))+(-5),0) -> 1 | AP8: =ROUND(RAND()*(3-2)+2,0) -> 2 | AQ8: =ROUND(RAND()*(4-(-4))+(-4),0) -> 2 | AR8: =ROUND(RAND()*(7-(-7))+(-7),0) -> -4 | AX8: =ROUND(RAND()*(3-2)+2,0) -> 2 | AY8: =ROUND(RAND()*(7-(-4))+(-4),0) -> 3 | AZ8: =ROUND(RAND()*(7-(-7))+(-7),0) -> -1 | BF8: =ROUND(RAND()*(3-2)+2,0) -> 3 | BG8: =ROUND(RAND()*(4-(-4))+(-4),0) -> 0 | BH8: =ROUND(RAND()*(7-(-7))+(-7),0) -> -6 | BN8: =ROUND(RAND()*(4-2)+2,0) -> 2 | BO8: =ROUND(RAND()*(6-(-6))+(-6),0) -> -4 | BP8: =ROUND(RAND()*(7-(-1))+(-1),0) -> 3 | BQ8: =ROUND(RAND()*(3-2)+2,0) -> 3
AH9: x1 | AI9: y1 | AJ9: x2 | AK9: y2 | AL9: x3 | AM9: y3 | AN9: x4 | AO9: y4 | AP9: x1 | AQ9: y1 | AR9: x2 | AS9: y2 | AT9: x3 | AU9: y3 | AV9: x4 | AW9: y4 | AX9: x1 | AY9: y1 | AZ9: x2 | BA9: y2 | BB9: x3 | BC9: y3 | BD9: x4 | BE9: y4 | BF9: x1 | BG9: y1 | BH9: x2 | BI9: y2 | BJ9: x3 | BK9: y3 | BL9: x4 | BM9: y4 | BN9: x1 | BO9: y1 | BP9: x2 | BQ9: y2 | BR9: x3 | BS9: y3 | BT9: x4 | BU9: y4
B10: Q1. | D10: ="Draw coordinate axes on the grid and plot" -> Draw coordinate axes on the grid and plot | AF10: =ROUND(RAND()*(5-1)+1,0) -> 4 | AH10: 1 | AI10: 1 | AJ10: -1 | AK10: 1 | AL10: -1 | AM10: -1 | AN10: 1 | AO10: -1 | AP10: 2 | AQ10: 1 | AR10: -1 | AS10: 1 | AT10: -1 | AU10: -1 | AV10: 2 | AW10: -1 | AX10: 1 | AY10: 1 | AZ10: -1 | BA10: 1 | BB10: -2 | BC10: -1 | BD10: 0 | BE10: -1 | BF10: 0 | BG10: 1 | BH10: -2 | BI10: 0 | BJ10: 0 | BK10: -1 | BL10: 2 | BM10: 0 | BN10: 0 | BO10: 1 | BP10: -1 | BQ10: 0 | BR10: 0 | BS10: -2 | BT10: 1 | BU10: 0
D11: =" the points "&AF5&" ("&AH16&","&AI16&") "&AF6&" ("&AJ16&","&AK16&") "&AF7&" ("&AL16&","&AM16&") " -> the points J (0,-3) K (-6,-6) L (0,-9) | U11: =CHAR(RAND()*(106-97)+97) -> a | AF11: 1 | AG11: square | AH11: =$AH$8*AH10+$AI$8 -> 3 | AI11: =$AH$8*AI10+$AJ$8 -> 3 | AJ11: =$AH$8*AJ10+$AI$8 -> -1 | AK11: =$AH$8*AK10+$AJ$8 -> 3 | AL11: =$AH$8*AL10+$AI$8 -> -1 | AM11: =$AH$8*AM10+$AJ$8 -> -1 | AN11: =$AH$8*AN10+$AI$8 -> 3 | AO11: =$AH$8*AO10+$AJ$8 -> -1 | AP11: =$AP$8*AP10+$AQ$8 -> 6 | AQ11: =$AP$8*AQ10+$AR$8 -> -2 | AR11: =$AP$8*AR10+$AQ$8 -> 0 | AS11: =$AP$8*AS10+$AR$8 -> -2 | AT11: =$AP$8*AT10+$AQ$8 -> 0 | AU11: =$AP$8*AU10+$AR$8 -> -6 | AV11: =$AP$8*AV10+$AQ$8 -> 6 | AW11: =$AP$8*AW10+$AR$8 -> -6 | AX11: =$AX$8*AX10+$AY$8 -> 5 | AY11: =$AX$8*AY10+$AZ$8 -> 1 | AZ11: =$AX$8*AZ10+$AY$8 -> 1 | BA11: =$AX$8*BA10+$AZ$8 -> 1 | BB11: =$AX$8*BB10+$AY$8 -> -1 | BC11: =$AX$8*BC10+$AZ$8 -> -3 | BD11: =$AX$8*BD10+$AY$8 -> 3 | BE11: =$AX$8*BE10+$AZ$8 -> -3 | BF11: =$BF$8*BF10+$BG$8 -> 0 | BG11: =$BF$8*BG10+$BH$8 -> -3 | BH11: =$BF$8*BH10+$BG$8 -> -6 | BI11: =$BF$8*BI10+$BH$8 -> -6 | BJ11: =$BF$8*BJ10+$BG$8 -> 0 | BK11: =$BF$8*BK10+$BH$8 -> -9 | BL11: =$BF$8*BL10+$BG$8 -> 6 | BM11: =$BF$8*BM10+$BH$8 -> -6 | BN11: =$BN$8*BN10+$BO$8 -> -4 | BO11: =$BQ$8*BO10+$BP$8 -> 6 | BP11: =$BN$8*BP10+$BO$8 -> -6 | BQ11: =$BQ$8*BQ10+$BP$8 -> 3 | BR11: =$BN$8*BR10+$BO$8 -> -4 | BS11: =$BQ$8*BS10+$BP$8 -> -3 | BT11: =$BN$8*BT10+$BO$8 -> -2 | BU11: =$BQ$8*BU10+$BP$8 -> 3
AF12: 2 | AG12: rectangle | AH12: =AP11 -> 6 | AI12: =AQ11 -> -2 | AJ12: 0 | AK12: -2 | AL12: 0 | AM12: -6 | AN12: 6 | AO12: -6
AF13: 3 | AG13: parallelogram | AH13: =AX11 -> 5 | AI13: =AY11 -> 1 | AJ13: 1 | AK13: 1 | AL13: -1 | AM13: -3 | AN13: 3 | AO13: -3
AF14: 4 | AG14: rhombus | AH14: =BF11 -> 0 | AI14: =BG11 -> -3 | AJ14: -6 | AK14: -6 | AL14: 0 | AM14: -9 | AN14: 6 | AO14: -6
D15: ="Plot a fourth point "&AF8&" to form a "&AG16&"." -> Plot a fourth point M to form a rhombus. | AF15: 5 | AG15: kite | AH15: =BN11 -> -4 | AI15: =BO11 -> 6 | AJ15: -6 | AK15: 3 | AL15: -4 | AM15: -3 | AN15: -2 | AO15: 3
D16: ="Join up the points to show the "&AG16&" "&AF5&AF6&AF7&AF8&"." -> Join up the points to show the rhombus JKLM. | AG16: =LOOKUP($AF$10,$AF$11:$AF$15,AG11:AG15) -> rhombus | AH16: =LOOKUP($AF$10,$AF$11:$AF$15,AH11:AH15) -> 0 | AI16: -3 | AJ16: -6 | AK16: -6 | AL16: 0 | AM16: -9 | AN16: 6 | AO16: -6
AN17: =TEXT(AN16,"0") -> 6 | AO17: =TEXT(AO16,"0") -> -6
D18: ="Write down the coordinates of the point "&AF8&"." -> Write down the coordinates of the point M.
D20: Coordinates = | F20: ( | H20: , | J20: ) | AF20: =ROUND(RAND()*(112-107)+107,0) -> 111
AF21: =UPPER(CHAR(AF20)) -> O
AF22: =UPPER(CHAR(AF20+1)) -> P
AF23: =UPPER(CHAR(AF20+2)) -> Q | AH23: S | AI23: LR | AJ23: UD | AP23: S | AQ23: LR | AR23: UD | AX23: S | AY23: LR | AZ23: UD | BF23: S | BG23: LR | BH23: UD | BN23: S | BO23: LR | BP23: UD | BQ23: S
B24: Q2. | D24: ="Draw coordinate axes on the grid and plot" -> Draw coordinate axes on the grid and plot | AF24: =UPPER(CHAR(AF20+3)) -> R | AH24: =ROUND(RAND()*(5-2)+2,0) -> 3 | AI24: =ROUND(RAND()*(5-(-5))+(-5),0) -> -1 | AJ24: =ROUND(RAND()*(5-(-5))+(-5),0) -> -1 | AP24: =ROUND(RAND()*(3-2)+2,0) -> 3 | AQ24: =ROUND(RAND()*(4-(-4))+(-4),0) -> 4 | AR24: =ROUND(RAND()*(7-(-7))+(-7),0) -> -3 | AX24: =ROUND(RAND()*(3-2)+2,0) -> 3 | AY24: =ROUND(RAND()*(7-(-4))+(-4),0) -> 1 | AZ24: =ROUND(RAND()*(7-(-7))+(-7),0) -> 1 | BF24: =ROUND(RAND()*(3-2)+2,0) -> 3 | BG24: =ROUND(RAND()*(4-(-4))+(-4),0) -> 2 | BH24: =ROUND(RAND()*(7-(-7))+(-7),0) -> 2 | BN24: =ROUND(RAND()*(4-2)+2,0) -> 2 | BO24: =ROUND(RAND()*(6-(-6))+(-6),0) -> 0 | BP24: =ROUND(RAND()*(7-(-1))+(-1),0) -> 5 | BQ24: =ROUND(RAND()*(3-2)+2,0) -> 3
D25: =" the points "&AF21&" ("&AH32&","&AI32&") "&AF22&" ("&AJ32&","&AK32&") "&AF23&" ("&AL32&","&AM32&") " -> the points O (4,4) P (-2,4) Q (-5,-2) | U25: =CHAR(RAND()*(106-97)+97) -> i | AH25: x1 | AI25: y1 | AJ25: x2 | AK25: y2 | AL25: x3 | AM25: y3 | AN25: x4 | AO25: y4 | AP25: x1 | AQ25: y1 | AR25: x2 | AS25: y2 | AT25: x3 | AU25: y3 | AV25: x4 | AW25: y4 | AX25: x1 | AY25: y1 | AZ25: x2 | BA25: y2 | BB25: x3 | BC25: y3 | BD25: x4 | BE25: y4 | BF25: x1 | BG25: y1 | BH25: x2 | BI25: y2 | BJ25: x3 | BK25: y3 | BL25: x4 | BM25: y4 | BN25: x1 | BO25: y1 | BP25: x2 | BQ25: y2 | BR25: x3 | BS25: y3 | BT25: x4 | BU25: y4
AF26: =ROUND(RAND()*(5-1)+1,0) -> 3 | AH26: 1 | AI26: 1 | AJ26: -1 | AK26: 1 | AL26: -1 | AM26: -1 | AN26: 1 | AO26: -1 | AP26: 2 | AQ26: 1 | AR26: -1 | AS26: 1 | AT26: -1 | AU26: -1 | AV26: 2 | AW26: -1 | AX26: 1 | AY26: 1 | AZ26: -1 | BA26: 1 | BB26: -2 | BC26: -1 | BD26: 0 | BE26: -1 | BF26: 0 | BG26: 1 | BH26: -2 | BI26: 0 | BJ26: 0 | BK26: -1 | BL26: 2 | BM26: 0 | BN26: 0 | BO26: 1 | BP26: -1 | BQ26: 0 | BR26: 0 | BS26: -2 | BT26: 1 | BU26: 0
AF27: 1 | AG27: square | AH27: =$AH$24*AH26+$AI$24 -> 2 | AI27: =$AH$24*AI26+$AJ$24 -> 2 | AJ27: =$AH$24*AJ26+$AI$24 -> -4 | AK27: =$AH$24*AK26+$AJ$24 -> 2 | AL27: =$AH$24*AL26+$AI$24 -> -4 | AM27: =$AH$24*AM26+$AJ$24 -> -4 | AN27: =$AH$24*AN26+$AI$24 -> 2 | AO27: =$AH$24*AO26+$AJ$24 -> -4 | AP27: =$AP$24*AP26+$AQ$24 -> 10 | AQ27: =$AP$24*AQ26+$AR$24 -> 0 | AR27: =$AP$24*AR26+$AQ$24 -> 1 | AS27: =$AP$24*AS26+$AR$24 -> 0 | AT27: =$AP$24*AT26+$AQ$24 -> 1 | AU27: =$AP$24*AU26+$AR$24 -> -6 | AV27: =$AP$24*AV26+$AQ$24 -> 10 | AW27: =$AP$24*AW26+$AR$24 -> -6 | AX27: =$AX$24*AX26+$AY$24 -> 4 | AY27: =$AX$24*AY26+$AZ$24 -> 4 | AZ27: =$AX$24*AZ26+$AY$24 -> -2 | BA27: =$AX$24*BA26+$AZ$24 -> 4 | BB27: =$AX$24*BB26+$AY$24 -> -5 | BC27: =$AX$24*BC26+$AZ$24 -> -2 | BD27: =$AX$24*BD26+$AY$24 -> 1 | BE27: =$AX$24*BE26+$AZ$24 -> -2 | BF27: =$BF$24*BF26+$BG$24 -> 2 | BG27: =$BF$24*BG26+$BH$24 -> 5 | BH27: =$BF$24*BH26+$BG$24 -> -4 | BI27: =$BF$24*BI26+$BH$24 -> 2 | BJ27: =$BF$24*BJ26+$BG$24 -> 2 | BK27: =$BF$24*BK26+$BH$24 -> -1 | BL27: =$BF$24*BL26+$BG$24 -> 8 | BM27: =$BF$24*BM26+$BH$24 -> 2 | BN27: =$BN$24*BN26+$BO$24 -> 0 | BO27: =$BQ$24*BO26+$BP$24 -> 8 | BP27: =$BN$24*BP26+$BO$24 -> -2 | BQ27: =$BQ$24*BQ26+$BP$24 -> 5 | BR27: =$BN$24*BR26+$BO$24 -> 0 | BS27: =$BQ$24*BS26+$BP$24 -> -1 | BT27: =$BN$24*BT26+$BO$24 -> 2 | BU27: =$BQ$24*BU26+$BP$24 -> 5
AF28: 2 | AG28: rectangle | AH28: =AP27 -> 10 | AI28: =AQ27 -> 0 | AJ28: =AR27 -> 1 | AK28: =AS27 -> 0 | AL28: =AT27 -> 1 | AM28: =AU27 -> -6 | AN28: =AV27 -> 10 | AO28: =AW27 -> -6
D29: ="Plot a fourth point "&AF24&" to form a "&AG32&"." -> Plot a fourth point R to form a parallelogram. | AF29: 3 | AG29: parallelogram | AH29: =AX27 -> 4 | AI29: =AY27 -> 4 | AJ29: =AZ27 -> -2 | AK29: =BA27 -> 4 | AL29: =BB27 -> -5 | AM29: =BC27 -> -2 | AN29: =BD27 -> 1 | AO29: =BE27 -> -2
D30: ="Join up the points to show the "&AG32&" "&AF21&AF22&AF23&AF24&"." -> Join up the points to show the parallelogram OPQR. | AF30: 4 | AG30: rhombus | AH30: =BF27 -> 2 | AI30: =BG27 -> 5 | AJ30: =BH27 -> -4 | AK30: =BI27 -> 2 | AL30: =BJ27 -> 2 | AM30: =BK27 -> -1 | AN30: =BL27 -> 8 | AO30: =BM27 -> 2
AF31: 5 | AG31: kite | AH31: =BN27 -> 0 | AI31: =BO27 -> 8 | AJ31: =BP27 -> -2 | AK31: =BQ27 -> 5 | AL31: =BR27 -> 0 | AM31: =BS27 -> -1 | AN31: =BT27 -> 2 | AO31: =BU27 -> 5
D32: ="Write down the coordinates of the point "&AF24&"." -> Write down the coordinates of the point R. | AG32: =LOOKUP($AF$26,$AF$27:$AF$31,AG27:AG31) -> parallelogram | AH32: =LOOKUP($AF$26,$AF$27:$AF$31,AH27:AH31) -> 4 | AI32: 4 | AJ32: =LOOKUP($AF$26,$AF$27:$AF$31,AJ27:AJ31) -> -2 | AK32: 4 | AL32: -5 | AM32: -2 | AN32: 1 | AO32: -2
AN33: =TEXT(AN32,"0") -> 1 | AO33: =TEXT(AO32,"0") -> -2
D34: Coordinates = | F34: ( | H34: , | J34: )
AF35: =ROUND(RAND()*(117-113)+113,0) -> 116
AF36: =UPPER(CHAR(AF35)) -> T
AF37: =UPPER(CHAR(AF35+1)) -> U
AF38: =UPPER(CHAR(AF35+2)) -> V | AH38: S | AI38: LR | AJ38: UD | AP38: S | AQ38: LR | AR38: UD | AX38: S | AY38: LR | AZ38: UD | BF38: S | BG38: LR | BH38: UD | BN38: S | BO38: LR | BP38: UD | BQ38: S
B39: Q3. | D39: ="Draw coordinate axes on the grid and plot" -> Draw coordinate axes on the grid and plot | AF39: =UPPER(CHAR(AF35+3)) -> W | AH39: =ROUND(RAND()*(5-2)+2,0) -> 3 | AI39: =ROUND(RAND()*(5-(-5))+(-5),0) -> 1 | AJ39: =ROUND(RAND()*(5-(-5))+(-5),0) -> -5 | AP39: =ROUND(RAND()*(3-2)+2,0) -> 2 | AQ39: =ROUND(RAND()*(4-(-4))+(-4),0) -> 3 | AR39: =ROUND(RAND()*(7-(-7))+(-7),0) -> -5 | AX39: =ROUND(RAND()*(3-2)+2,0) -> 3 | AY39: =ROUND(RAND()*(7-(-4))+(-4),0) -> 2 | AZ39: =ROUND(RAND()*(7-(-7))+(-7),0) -> 5 | BF39: =ROUND(RAND()*(3-2)+2,0) -> 3 | BG39: =ROUND(RAND()*(4-(-4))+(-4),0) -> 3 | BH39: =ROUND(RAND()*(7-(-7))+(-7),0) -> 7 | BN39: =ROUND(RAND()*(4-2)+2,0) -> 4 | BO39: =ROUND(RAND()*(6-(-6))+(-6),0) -> -5 | BP39: =ROUND(RAND()*(7-(-1))+(-1),0) -> 5 | BQ39: =ROUND(RAND()*(3-2)+2,0) -> 2
D40: =" the points "&AF36&" ("&AH47&","&AI47&") "&AF37&" ("&AJ47&","&AK47&") "&AF38&" ("&AL47&","&AM47&") " -> the points T (7,-3) U (1,-3) V (1,-7) | U40: =CHAR(RAND()*(106-97)+97) -> h | AH40: x1 | AI40: y1 | AJ40: x2 | AK40: y2 | AL40: x3 | AM40: y3 | AN40: x4 | AO40: y4 | AP40: x1 | AQ40: y1 | AR40: x2 | AS40: y2 | AT40: x3 | AU40: y3 | AV40: x4 | AW40: y4 | AX40: x1 | AY40: y1 | AZ40: x2 | BA40: y2 | BB40: x3 | BC40: y3 | BD40: x4 | BE40: y4 | BF40: x1 | BG40: y1 | BH40: x2 | BI40: y2 | BJ40: x3 | BK40: y3 | BL40: x4 | BM40: y4 | BN40: x1 | BO40: y1 | BP40: x2 | BQ40: y2 | BR40: x3 | BS40: y3 | BT40: x4 | BU40: y4
AF41: =ROUND(RAND()*(5-1)+1,0) -> 2 | AH41: 1 | AI41: 1 | AJ41: -1 | AK41: 1 | AL41: -1 | AM41: -1 | AN41: 1 | AO41: -1 | AP41: 2 | AQ41: 1 | AR41: -1 | AS41: 1 | AT41: -1 | AU41: -1 | AV41: 2 | AW41: -1 | AX41: 1 | AY41: 1 | AZ41: -1 | BA41: 1 | BB41: -2 | BC41: -1 | BD41: 0 | BE41: -1 | BF41: 0 | BG41: 1 | BH41: -2 | BI41: 0 | BJ41: 0 | BK41: -1 | BL41: 2 | BM41: 0 | BN41: 0 | BO41: 1 | BP41: -1 | BQ41: 0 | BR41: 0 | BS41: -2 | BT41: 1 | BU41: 0
AF42: 1 | AG42: square | AH42: =$AH$39*AH41+$AI$39 -> 4 | AI42: =$AH$39*AI41+$AJ$39 -> -2 | AJ42: =$AH$39*AJ41+$AI$39 -> -2 | AK42: =$AH$39*AK41+$AJ$39 -> -2 | AL42: =$AH$39*AL41+$AI$39 -> -2 | AM42: =$AH$39*AM41+$AJ$39 -> -8 | AN42: =$AH$39*AN41+$AI$39 -> 4 | AO42: =$AH$39*AO41+$AJ$39 -> -8 | AP42: =$AP$39*AP41+$AQ$39 -> 7 | AQ42: =$AP$39*AQ41+$AR$39 -> -3 | AR42: =$AP$39*AR41+$AQ$39 -> 1 | AS42: =$AP$39*AS41+$AR$39 -> -3 | AT42: =$AP$39*AT41+$AQ$39 -> 1 | AU42: =$AP$39*AU41+$AR$39 -> -7 | AV42: =$AP$39*AV41+$AQ$39 -> 7 | AW42: =$AP$39*AW41+$AR$39 -> -7 | AX42: =$AX$39*AX41+$AY$39 -> 5 | AY42: =$AX$39*AY41+$AZ$39 -> 8 | AZ42: =$AX$39*AZ41+$AY$39 -> -1 | BA42: =$AX$39*BA41+$AZ$39 -> 8 | BB42: =$AX$39*BB41+$AY$39 -> -4 | BC42: =$AX$39*BC41+$AZ$39 -> 2 | BD42: =$AX$39*BD41+$AY$39 -> 2 | BE42: =$AX$39*BE41+$AZ$39 -> 2 | BF42: =$BF$39*BF41+$BG$39 -> 3 | BG42: =$BF$39*BG41+$BH$39 -> 10 | BH42: =$BF$39*BH41+$BG$39 -> -3 | BI42: =$BF$39*BI41+$BH$39 -> 7 | BJ42: =$BF$39*BJ41+$BG$39 -> 3 | BK42: =$BF$39*BK41+$BH$39 -> 4 | BL42: =$BF$39*BL41+$BG$39 -> 9 | BM42: =$BF$39*BM41+$BH$39 -> 7 | BN42: =$BN$39*BN41+$BO$39 -> -5 | BO42: =$BQ$39*BO41+$BP$39 -> 7 | BP42: =$BN$39*BP41+$BO$39 -> -9 | BQ42: =$BQ$39*BQ41+$BP$39 -> 5 | BR42: =$BN$39*BR41+$BO$39 -> -5 | BS42: =$BQ$39*BS41+$BP$39 -> 1 | BT42: =$BN$39*BT41+$BO$39 -> -1 | BU42: =$BQ$39*BU41+$BP$39 -> 5
AF43: 2 | AG43: rectangle | AH43: =AP42 -> 7 | AI43: =AQ42 -> -3 | AJ43: =AR42 -> 1 | AK43: =AS42 -> -3 | AL43: =AT42 -> 1 | AM43: =AU42 -> -7 | AN43: =AV42 -> 7 | AO43: =AW42 -> -7
D44: ="Plot a fourth point "&AF39&" to form a "&AG47&"." -> Plot a fourth point W to form a rectangle. | AF44: 3 | AG44: parallelogram | AH44: =AX42 -> 5 | AI44: =AY42 -> 8 | AJ44: =AZ42 -> -1 | AK44: =BA42 -> 8 | AL44: =BB42 -> -4 | AM44: =BC42 -> 2 | AN44: =BD42 -> 2 | AO44: =BE42 -> 2
D45: ="Join up the points to show the "&AG47&" "&AF36&AF37&AF38&AF39&"." -> Join up the points to show the rectangle TUVW. | AF45: 4 | AG45: rhombus | AH45: =BF42 -> 3 | AI45: =BG42 -> 10 | AJ45: =BH42 -> -3 | AK45: =BI42 -> 7 | AL45: =BJ42 -> 3 | AM45: =BK42 -> 4 | AN45: =BL42 -> 9 | AO45: =BM42 -> 7
AF46: 5 | AG46: kite | AH46: =BN42 -> -5 | AI46: =BO42 -> 7 | AJ46: =BP42 -> -9 | AK46: =BQ42 -> 5 | AL46: =BR42 -> -5 | AM46: =BS42 -> 1 | AN46: =BT42 -> -1 | AO46: =BU42 -> 5
D47: ="Write down the coordinates of the point "&AF39&"." -> Write down the coordinates of the point W. | AG47: =LOOKUP($AF$41,$AF$42:$AF$46,AG42:AG46) -> rectangle | AH47: =LOOKUP($AF$41,$AF$42:$AF$46,AH42:AH46) -> 7 | AI47: =LOOKUP($AF$41,$AF$42:$AF$46,AI42:AI46) -> -3 | AJ47: 1 | AK47: -3 | AL47: 1 | AM47: -7 | AN47: 7 | AO47: -7
AN48: =TEXT(AN47,"0") -> 7 | AO48: =TEXT(AO47,"0") -> -7
D49: Coordinates = | F49: ( | H49: , | J49: ) | AF49: =ROUND(RAND()*(119-113)+113,0) -> 115
AF50: =UPPER(CHAR(AF49)) -> S
AF51: =UPPER(CHAR(AF49+1)) -> T
AF52: =UPPER(CHAR(AF49+2)) -> U | AH52: S | AI52: LR | AJ52: UD | AP52: S | AQ52: LR | AR52: UD | AX52: S | AY52: LR | AZ52: UD | BF52: S | BG52: LR | BH52: UD | BN52: S | BO52: LR | BP52: UD | BQ52: S
B53: Q4. | D53: ="Draw coordinate axes on the grid and plot" -> Draw coordinate axes on the grid and plot | AF53: =UPPER(CHAR(AF49+3)) -> V | AH53: =ROUND(RAND()*(5-2)+2,0) -> 4 | AI53: =ROUND(RAND()*(5-(-5))+(-5),0) -> -4 | AJ53: =ROUND(RAND()*(5-(-5))+(-5),0) -> 5 | AP53: =ROUND(RAND()*(3-2)+2,0) -> 2 | AQ53: =ROUND(RAND()*(4-(-4))+(-4),0) -> 1 | AR53: =ROUND(RAND()*(7-(-7))+(-7),0) -> 0 | AX53: =ROUND(RAND()*(3-2)+2,0) -> 3 | AY53: =ROUND(RAND()*(7-(-4))+(-4),0) -> 2 | AZ53: =ROUND(RAND()*(7-(-7))+(-7),0) -> -3 | BF53: =ROUND(RAND()*(3-2)+2,0) -> 2 | BG53: =ROUND(RAND()*(4-(-4))+(-4),0) -> -3 | BH53: =ROUND(RAND()*(7-(-7))+(-7),0) -> -6 | BN53: =ROUND(RAND()*(4-2)+2,0) -> 3 | BO53: =ROUND(RAND()*(6-(-6))+(-6),0) -> 3 | BP53: =ROUND(RAND()*(7-(-1))+(-1),0) -> 0 | BQ53: =ROUND(RAND()*(3-2)+2,0) -> 3
D54: =" the points "&AF50&" ("&AH61&","&AI61&") "&AF51&" ("&AJ61&","&AK61&") "&AF52&" ("&AL61&","&AM61&") " -> the points S (5,2) T (-1,2) U (-1,-2) | U54: =CHAR(RAND()*(106-97)+97) -> d | AH54: x1 | AI54: y1 | AJ54: x2 | AK54: y2 | AL54: x3 | AM54: y3 | AN54: x4 | AO54: y4 | AP54: x1 | AQ54: y1 | AR54: x2 | AS54: y2 | AT54: x3 | AU54: y3 | AV54: x4 | AW54: y4 | AX54: x1 | AY54: y1 | AZ54: x2 | BA54: y2 | BB54: x3 | BC54: y3 | BD54: x4 | BE54: y4 | BF54: x1 | BG54: y1 | BH54: x2 | BI54: y2 | BJ54: x3 | BK54: y3 | BL54: x4 | BM54: y4 | BN54: x1 | BO54: y1 | BP54: x2 | BQ54: y2 | BR54: x3 | BS54: y3 | BT54: x4 | BU54: y4
AF55: =ROUND(RAND()*(5-1)+1,0) -> 2 | AH55: 1 | AI55: 1 | AJ55: -1 | AK55: 1 | AL55: -1 | AM55: -1 | AN55: 1 | AO55: -1 | AP55: 2 | AQ55: 1 | AR55: -1 | AS55: 1 | AT55: -1 | AU55: -1 | AV55: 2 | AW55: -1 | AX55: 1 | AY55: 1 | AZ55: -1 | BA55: 1 | BB55: -2 | BC55: -1 | BD55: 0 | BE55: -1 | BF55: 0 | BG55: 1 | BH55: -2 | BI55: 0 | BJ55: 0 | BK55: -1 | BL55: 2 | BM55: 0 | BN55: 0 | BO55: 1 | BP55: -1 | BQ55: 0 | BR55: 0 | BS55: -2 | BT55: 1 | BU55: 0
AF56: 1 | AG56: square | AH56: =$AH$53*AH55+$AI$53 -> 0 | AI56: =$AH$53*AI55+$AJ$53 -> 9 | AJ56: =$AH$53*AJ55+$AI$53 -> -8 | AK56: =$AH$53*AK55+$AJ$53 -> 9 | AL56: =$AH$53*AL55+$AI$53 -> -8 | AM56: =$AH$53*AM55+$AJ$53 -> 1 | AN56: =$AH$53*AN55+$AI$53 -> 0 | AO56: =$AH$53*AO55+$AJ$53 -> 1 | AP56: =$AP$53*AP55+$AQ$53 -> 5 | AQ56: =$AP$53*AQ55+$AR$53 -> 2 | AR56: =$AP$53*AR55+$AQ$53 -> -1 | AS56: =$AP$53*AS55+$AR$53 -> 2 | AT56: =$AP$53*AT55+$AQ$53 -> -1 | AU56: =$AP$53*AU55+$AR$53 -> -2 | AV56: =$AP$53*AV55+$AQ$53 -> 5 | AW56: =$AP$53*AW55+$AR$53 -> -2 | AX56: =$AX$53*AX55+$AY$53 -> 5 | AY56: =$AX$53*AY55+$AZ$53 -> 0 | AZ56: =$AX$53*AZ55+$AY$53 -> -1 | BA56: =$AX$53*BA55+$AZ$53 -> 0 | BB56: =$AX$53*BB55+$AY$53 -> -4 | BC56: =$AX$53*BC55+$AZ$53 -> -6 | BD56: =$AX$53*BD55+$AY$53 -> 2 | BE56: =$AX$53*BE55+$AZ$53 -> -6 | BF56: =$BF$53*BF55+$BG$53 -> -3 | BG56: =$BF$53*BG55+$BH$53 -> -4 | BH56: =$BF$53*BH55+$BG$53 -> -7 | BI56: =$BF$53*BI55+$BH$53 -> -6 | BJ56: =$BF$53*BJ55+$BG$53 -> -3 | BK56: =$BF$53*BK55+$BH$53 -> -8 | BL56: =$BF$53*BL55+$BG$53 -> 1 | BM56: =$BF$53*BM55+$BH$53 -> -6 | BN56: =$BN$53*BN55+$BO$53 -> 3 | BO56: =$BQ$53*BO55+$BP$53 -> 3 | BP56: =$BN$53*BP55+$BO$53 -> 0 | BQ56: =$BQ$53*BQ55+$BP$53 -> 0 | BR56: =$BN$53*BR55+$BO$53 -> 3 | BS56: =$BQ$53*BS55+$BP$53 -> -6 | BT56: =$BN$53*BT55+$BO$53 -> 6 | BU56: =$BQ$53*BU55+$BP$53 -> 0
AF57: 2 | AG57: rectangle | AH57: =AP56 -> 5 | AI57: =AQ56 -> 2 | AJ57: =AR56 -> -1 | AK57: =AS56 -> 2 | AL57: =AT56 -> -1 | AM57: =AU56 -> -2 | AN57: =AV56 -> 5 | AO57: =AW56 -> -2
D58: ="Plot a fourth point "&AF53&" to form a "&AG61&"." -> Plot a fourth point V to form a rectangle. | AF58: 3 | AG58: parallelogram | AH58: =AX56 -> 5 | AI58: =AY56 -> 0 | AJ58: =AZ56 -> -1 | AK58: =BA56 -> 0 | AL58: =BB56 -> -4 | AM58: =BC56 -> -6 | AN58: =BD56 -> 2 | AO58: =BE56 -> -6
D59: ="Join up the points to show the "&AG61&" "&AF50&AF51&AF52&AF53&"." -> Join up the points to show the rectangle STUV. | AF59: 4 | AG59: rhombus | AH59: =BF56 -> -3 | AI59: =BG56 -> -4 | AJ59: =BH56 -> -7 | AK59: =BI56 -> -6 | AL59: =BJ56 -> -3 | AM59: =BK56 -> -8 | AN59: =BL56 -> 1 | AO59: =BM56 -> -6
AF60: 5 | AG60: kite | AH60: =BN56 -> 3 | AI60: =BO56 -> 3 | AJ60: =BP56 -> 0 | AK60: =BQ56 -> 0 | AL60: =BR56 -> 3 | AM60: =BS56 -> -6 | AN60: =BT56 -> 6 | AO60: =BU56 -> 0
D61: ="Write down the coordinates of the point "&AF53&"." -> Write down the coordinates of the point V. | AG61: =LOOKUP($AF$55,$AF$56:$AF$60,AG56:AG60) -> rectangle | AH61: =LOOKUP($AF$55,$AF$56:$AF$60,AH56:AH60) -> 5 | AI61: =LOOKUP($AF$55,$AF$56:$AF$60,AI56:AI60) -> 2 | AJ61: -1 | AK61: 2 | AL61: -1 | AM61: -2 | AN61: 5 | AO61: -2
AN62: =TEXT(AN61,"0") -> 5 | AO62: =TEXT(AO61,"0") -> -2
D63: Coordinates = | F63: ( | H63: , | J63: )
AF64: =ROUND(RAND()*(106-97)+97,0) -> 105
AF65: =UPPER(CHAR(AF64)) -> I
AF66: =UPPER(CHAR(AF64+1)) -> J
AF67: =UPPER(CHAR(AF64+2)) -> K | AH67: S | AI67: LR | AJ67: UD | AP67: S | AQ67: LR | AR67: UD | AX67: S | AY67: LR | AZ67: UD | BF67: S | BG67: LR | BH67: UD | BN67: S | BO67: LR | BP67: UD | BQ67: S
B68: Q5. | D68: ="Draw coordinate axes on the grid and plot" -> Draw coordinate axes on the grid and plot | AF68: =UPPER(CHAR(AF64+3)) -> L | AH68: =ROUND(RAND()*(5-2)+2,0) -> 3 | AI68: =ROUND(RAND()*(5-(-5))+(-5),0) -> -3 | AJ68: =ROUND(RAND()*(5-(-5))+(-5),0) -> 1 | AP68: =ROUND(RAND()*(3-2)+2,0) -> 3 | AQ68: =ROUND(RAND()*(4-(-4))+(-4),0) -> 1 | AR68: =ROUND(RAND()*(7-(-7))+(-7),0) -> 2 | AX68: =ROUND(RAND()*(3-2)+2,0) -> 2 | AY68: =ROUND(RAND()*(7-(-4))+(-4),0) -> 3 | AZ68: =ROUND(RAND()*(7-(-7))+(-7),0) -> -4 | BF68: =ROUND(RAND()*(3-2)+2,0) -> 2 | BG68: =ROUND(RAND()*(4-(-4))+(-4),0) -> -4 | BH68: =ROUND(RAND()*(7-(-7))+(-7),0) -> 6 | BN68: =ROUND(RAND()*(4-2)+2,0) -> 3 | BO68: =ROUND(RAND()*(6-(-6))+(-6),0) -> 2 | BP68: =ROUND(RAND()*(7-(-1))+(-1),0) -> 7 | BQ68: =ROUND(RAND()*(3-2)+2,0) -> 2
D69: =" the points "&AF65&" ("&AH76&","&AI76&") "&AF66&" ("&AJ76&","&AK76&") "&AF67&" ("&AL76&","&AM76&") " -> the points I (7,5) J (-2,5) K (-2,-1) | U69: =CHAR(RAND()*(106-97)+97) -> c | AH69: x1 | AI69: y1 | AJ69: x2 | AK69: y2 | AL69: x3 | AM69: y3 | AN69: x4 | AO69: y4 | AP69: x1 | AQ69: y1 | AR69: x2 | AS69: y2 | AT69: x3 | AU69: y3 | AV69: x4 | AW69: y4 | AX69: x1 | AY69: y1 | AZ69: x2 | BA69: y2 | BB69: x3 | BC69: y3 | BD69: x4 | BE69: y4 | BF69: x1 | BG69: y1 | BH69: x2 | BI69: y2 | BJ69: x3 | BK69: y3 | BL69: x4 | BM69: y4 | BN69: x1 | BO69: y1 | BP69: x2 | BQ69: y2 | BR69: x3 | BS69: y3 | BT69: x4 | BU69: y4
AF70: =ROUND(RAND()*(5-1)+1,0) -> 2 | AH70: 1 | AI70: 1 | AJ70: -1 | AK70: 1 | AL70: -1 | AM70: -1 | AN70: 1 | AO70: -1 | AP70: 2 | AQ70: 1 | AR70: -1 | AS70: 1 | AT70: -1 | AU70: -1 | AV70: 2 | AW70: -1 | AX70: 1 | AY70: 1 | AZ70: -1 | BA70: 1 | BB70: -2 | BC70: -1 | BD70: 0 | BE70: -1 | BF70: 0 | BG70: 1 | BH70: -2 | BI70: 0 | BJ70: 0 | BK70: -1 | BL70: 2 | BM70: 0 | BN70: 0 | BO70: 1 | BP70: -1 | BQ70: 0 | BR70: 0 | BS70: -2 | BT70: 1 | BU70: 0
AF71: 1 | AG71: square | AH71: =$AH$68*AH70+$AI$68 -> 0 | AI71: =$AH$68*AI70+$AJ$68 -> 4 | AJ71: =$AH$68*AJ70+$AI$68 -> -6 | AK71: =$AH$68*AK70+$AJ$68 -> 4 | AL71: =$AH$68*AL70+$AI$68 -> -6 | AM71: =$AH$68*AM70+$AJ$68 -> -2 | AN71: =$AH$68*AN70+$AI$68 -> 0 | AO71: =$AH$68*AO70+$AJ$68 -> -2 | AP71: =$AP$68*AP70+$AQ$68 -> 7 | AQ71: =$AP$68*AQ70+$AR$68 -> 5 | AR71: =$AP$68*AR70+$AQ$68 -> -2 | AS71: =$AP$68*AS70+$AR$68 -> 5 | AT71: =$AP$68*AT70+$AQ$68 -> -2 | AU71: =$AP$68*AU70+$AR$68 -> -1 | AV71: =$AP$68*AV70+$AQ$68 -> 7 | AW71: =$AP$68*AW70+$AR$68 -> -1 | AX71: =$AX$68*AX70+$AY$68 -> 5 | AY71: =$AX$68*AY70+$AZ$68 -> -2 | AZ71: =$AX$68*AZ70+$AY$68 -> 1 | BA71: =$AX$68*BA70+$AZ$68 -> -2 | BB71: =$AX$68*BB70+$AY$68 -> -1 | BC71: =$AX$68*BC70+$AZ$68 -> -6 | BD71: =$AX$68*BD70+$AY$68 -> 3 | BE71: =$AX$68*BE70+$AZ$68 -> -6 | BF71: =$BF$68*BF70+$BG$68 -> -4 | BG71: =$BF$68*BG70+$BH$68 -> 8 | BH71: =$BF$68*BH70+$BG$68 -> -8 | BI71: =$BF$68*BI70+$BH$68 -> 6 | BJ71: =$BF$68*BJ70+$BG$68 -> -4 | BK71: =$BF$68*BK70+$BH$68 -> 4 | BL71: =$BF$68*BL70+$BG$68 -> 0 | BM71: =$BF$68*BM70+$BH$68 -> 6 | BN71: =$BN$68*BN70+$BO$68 -> 2 | BO71: =$BQ$68*BO70+$BP$68 -> 9 | BP71: =$BN$68*BP70+$BO$68 -> -1 | BQ71: =$BQ$68*BQ70+$BP$68 -> 7 | BR71: =$BN$68*BR70+$BO$68 -> 2 | BS71: =$BQ$68*BS70+$BP$68 -> 3 | BT71: =$BN$68*BT70+$BO$68 -> 5 | BU71: =$BQ$68*BU70+$BP$68 -> 7
AF72: 2 | AG72: rectangle | AH72: =AP71 -> 7 | AI72: =AQ71 -> 5 | AJ72: =AR71 -> -2 | AK72: =AS71 -> 5 | AL72: =AT71 -> -2 | AM72: =AU71 -> -1 | AN72: =AV71 -> 7 | AO72: =AW71 -> -1
D73: ="Plot a fourth point "&AF68&" to form a "&AG76&"." -> Plot a fourth point L to form a rectangle. | AF73: 3 | AG73: parallelogram | AH73: =AX71 -> 5 | AI73: =AY71 -> -2 | AJ73: =AZ71 -> 1 | AK73: =BA71 -> -2 | AL73: =BB71 -> -1 | AM73: =BC71 -> -6 | AN73: =BD71 -> 3 | AO73: =BE71 -> -6
D74: ="Join up the points to show the "&AG76&" "&AF65&AF66&AF67&AF68&"." -> Join up the points to show the rectangle IJKL. | AF74: 4 | AG74: rhombus | AH74: =BF71 -> -4 | AI74: =BG71 -> 8 | AJ74: =BH71 -> -8 | AK74: =BI71 -> 6 | AL74: =BJ71 -> -4 | AM74: =BK71 -> 4 | AN74: =BL71 -> 0 | AO74: =BM71 -> 6
AF75: 5 | AG75: kite | AH75: =BN71 -> 2 | AI75: =BO71 -> 9 | AJ75: =BP71 -> -1 | AK75: =BQ71 -> 7 | AL75: =BR71 -> 2 | AM75: =BS71 -> 3 | AN75: =BT71 -> 5 | AO75: =BU71 -> 7
D76: ="Write down the coordinates of the point "&AF68&"." -> Write down the coordinates of the point L. | AG76: =LOOKUP($AF$70,$AF71:$AF$75,AG71:AG75) -> rectangle | AH76: =LOOKUP($AF$70,$AF$71:$AF$75,AH71:AH75) -> 7 | AI76: =LOOKUP($AF$70,$AF$71:$AF$75,AI71:AI75) -> 5 | AJ76: -2 | AK76: 5 | AL76: -2 | AM76: -1 | AN76: 7 | AO76: -1
AN77: =TEXT(AN76,"0") -> 7 | AO77: =TEXT(AO76,"0") -> -1
D78: Coordinates = | F78: ( | J78: ) | AF78: =ROUND(RAND()*(119-113)+113,0) -> 117
AF79: =UPPER(CHAR(AF78)) -> U
AF80: =UPPER(CHAR(AF78+1)) -> V
AF81: =UPPER(CHAR(AF78+2)) -> W | AH81: S | AI81: LR | AJ81: UD | AP81: S | AQ81: LR | AR81: UD | AX81: S | AY81: LR | AZ81: UD | BF81: S | BG81: LR | BH81: UD | BN81: S | BO81: LR | BP81: UD | BQ81: S
B82: Q6. | D82: ="Draw coordinate axes on the grid and plot" -> Draw coordinate axes on the grid and plot | AF82: =UPPER(CHAR(AF78+3)) -> X | AH82: =ROUND(RAND()*(5-2)+2,0) -> 3 | AI82: =ROUND(RAND()*(5-(-5))+(-5),0) -> -1 | AJ82: =ROUND(RAND()*(5-(-5))+(-5),0) -> 0 | AP82: =ROUND(RAND()*(3-2)+2,0) -> 2 | AQ82: =ROUND(RAND()*(4-(-4))+(-4),0) -> 1 | AR82: =ROUND(RAND()*(7-(-7))+(-7),0) -> 5 | AX82: =ROUND(RAND()*(3-2)+2,0) -> 2 | AY82: =ROUND(RAND()*(7-(-4))+(-4),0) -> -4 | AZ82: =ROUND(RAND()*(7-(-7))+(-7),0) -> 4 | BF82: =ROUND(RAND()*(3-2)+2,0) -> 2 | BG82: =ROUND(RAND()*(4-(-4))+(-4),0) -> 4 | BH82: =ROUND(RAND()*(7-(-7))+(-7),0) -> 1 | BN82: =ROUND(RAND()*(4-2)+2,0) -> 3 | BO82: =ROUND(RAND()*(6-(-6))+(-6),0) -> 5 | BP82: =ROUND(RAND()*(7-(-1))+(-1),0) -> 2 | BQ82: =ROUND(RAND()*(3-2)+2,0) -> 3
D83: =" the points "&AF79&" ("&AH90&","&AI90&") "&AF80&" ("&AJ90&","&AK90&") "&AF81&" ("&AL90&","&AM90&") " -> the points U (-2,6) V (-6,6) W (-8,2) | U83: =CHAR(RAND()*(106-97)+97) -> a | AH83: x1 | AI83: y1 | AJ83: x2 | AK83: y2 | AL83: x3 | AM83: y3 | AN83: x4 | AO83: y4 | AP83: x1 | AQ83: y1 | AR83: x2 | AS83: y2 | AT83: x3 | AU83: y3 | AV83: x4 | AW83: y4 | AX83: x1 | AY83: y1 | AZ83: x2 | BA83: y2 | BB83: x3 | BC83: y3 | BD83: x4 | BE83: y4 | BF83: x1 | BG83: y1 | BH83: x2 | BI83: y2 | BJ83: x3 | BK83: y3 | BL83: x4 | BM83: y4 | BN83: x1 | BO83: y1 | BP83: x2 | BQ83: y2 | BR83: x3 | BS83: y3 | BT83: x4 | BU83: y4
AF84: =ROUND(RAND()*(5-1)+1,0) -> 3 | AH84: 1 | AI84: 1 | AJ84: -1 | AK84: 1 | AL84: -1 | AM84: -1 | AN84: 1 | AO84: -1 | AP84: 2 | AQ84: 1 | AR84: -1 | AS84: 1 | AT84: -1 | AU84: -1 | AV84: 2 | AW84: -1 | AX84: 1 | AY84: 1 | AZ84: -1 | BA84: 1 | BB84: -2 | BC84: -1 | BD84: 0 | BE84: -1 | BF84: 0 | BG84: 1 | BH84: -2 | BI84: 0 | BJ84: 0 | BK84: -1 | BL84: 2 | BM84: 0 | BN84: 0 | BO84: 1 | BP84: -1 | BQ84: 0 | BR84: 0 | BS84: -2 | BT84: 1 | BU84: 0
AF85: 1 | AG85: square | AH85: =$AH$8*AH84+$AI$8 -> 3 | AI85: =$AH$8*AI84+$AJ$8 -> 3 | AJ85: =$AH$8*AJ84+$AI$8 -> -1 | AK85: =$AH$8*AK84+$AJ$8 -> 3 | AL85: =$AH$8*AL84+$AI$8 -> -1 | AM85: =$AH$8*AM84+$AJ$8 -> -1 | AN85: =$AH$8*AN84+$AI$8 -> 3 | AO85: =$AH$8*AO84+$AJ$8 -> -1 | AP85: =$AP$82*AP84+$AQ$82 -> 5 | AQ85: =$AP$82*AQ84+$AR$82 -> 7 | AR85: =$AP$82*AR84+$AQ$82 -> -1 | AS85: =$AP$82*AS84+$AR$82 -> 7 | AT85: =$AP$82*AT84+$AQ$82 -> -1 | AU85: =$AP$82*AU84+$AR$82 -> 3 | AV85: =$AP$82*AV84+$AQ$82 -> 5 | AW85: =$AP$82*AW84+$AR$82 -> 3 | AX85: =$AX$82*AX84+$AY$82 -> -2 | AY85: =$AX$82*AY84+$AZ$82 -> 6 | AZ85: =$AX$82*AZ84+$AY$82 -> -6 | BA85: =$AX$82*BA84+$AZ$82 -> 6 | BB85: =$AX$82*BB84+$AY$82 -> -8 | BC85: =$AX$82*BC84+$AZ$82 -> 2 | BD85: =$AX$82*BD84+$AY$82 -> -4 | BE85: =$AX$82*BE84+$AZ$82 -> 2 | BF85: =$BF$82*BF84+$BG$82 -> 4 | BG85: =$BF$82*BG84+$BH$82 -> 3 | BH85: =$BF$82*BH84+$BG$82 -> 0 | BI85: =$BF$82*BI84+$BH$82 -> 1 | BJ85: =$BF$82*BJ84+$BG$82 -> 4 | BK85: =$BF$82*BK84+$BH$82 -> -1 | BL85: =$BF$82*BL84+$BG$82 -> 8 | BM85: =$BF$82*BM84+$BH$82 -> 1 | BN85: =$BN$82*BN84+$BO$82 -> 5 | BO85: =$BQ$82*BO84+$BP$82 -> 5 | BP85: =$BN$82*BP84+$BO$82 -> 2 | BQ85: =$BQ$82*BQ84+$BP$82 -> 2 | BR85: =$BN$82*BR84+$BO$82 -> 5 | BS85: =$BQ$82*BS84+$BP$82 -> -4 | BT85: =$BN$82*BT84+$BO$82 -> 8 | BU85: =$BQ$82*BU84+$BP$82 -> 2
AF86: 2 | AG86: rectangle | AH86: =AP85 -> 5 | AI86: =AQ85 -> 7 | AJ86: =AR85 -> -1 | AK86: =AS85 -> 7 | AL86: =AT85 -> -1 | AM86: =AU85 -> 3 | AN86: =AV85 -> 5 | AO86: =AW85 -> 3
D87: ="Plot a fourth point "&AF82&" to form a "&AG90&"." -> Plot a fourth point X to form a parallelogram. | AF87: 3 | AG87: parallelogram | AH87: =AX85 -> -2 | AI87: =AY85 -> 6 | AJ87: =AZ85 -> -6 | AK87: =BA85 -> 6 | AL87: =BB85 -> -8 | AM87: =BC85 -> 2 | AN87: =BD85 -> -4 | AO87: =BE85 -> 2
D88: ="Join up the points to show the "&AG90&" "&AF79&AF80&AF81&AF82&"." -> Join up the points to show the parallelogram UVWX. | AF88: 4 | AG88: rhombus | AH88: =BF85 -> 4 | AI88: =BG85 -> 3 | AJ88: =BH85 -> 0 | AK88: =BI85 -> 1 | AL88: =BJ85 -> 4 | AM88: =BK85 -> -1 | AN88: =BL85 -> 8 | AO88: =BM85 -> 1
AF89: 5 | AG89: kite | AH89: =BN85 -> 5 | AI89: =BO85 -> 5 | AJ89: =BP85 -> 2 | AK89: =BQ85 -> 2 | AL89: =BR85 -> 5 | AM89: =BS85 -> -4 | AN89: =BT85 -> 8 | AO89: =BU85 -> 2
D90: ="Write down the coordinates of the point "&AF82&"." -> Write down the coordinates of the point X. | AG90: =LOOKUP($AF$84,$AF$85:$AF$89,AG85:AG89) -> parallelogram | AH90: =LOOKUP($AF$84,$AF$85:$AF$89,AH85:AH89) -> -2 | AI90: =LOOKUP($AF$84,$AF$85:$AF$89,AI85:AI89) -> 6 | AJ90: -6 | AK90: 6 | AL90: -8 | AM90: 2 | AN90: -4 | AO90: 2
AN91: =TEXT(AN90,"0") -> -4 | AO91: =TEXT(AO90,"0") -> 2
D92: Coordinates = | F92: ( | H92: , | J92: )
B99: Double check your work before submitting work

Sheet Final_Exam
B2: FINAL EXAM National 4
D5: Paper 1 | L5: Paper 2
D6: Fraction of a Quanitity | E6: Mean and Rounding | F6: Percentage of a Quanitity | G6: Basic Number - Mulitple | H6: Basic Number - Add/ Sub | L6: Equations | M6: Composite Area | N6: Composite Area | O6: Linear Patterns | P6: Linear Patterns | Q6: Time Speed Distance | R6: Pythagoras in Context | S6: Pythagoras in Context | T6: SOHCAHTOA in Context | U6: Coordinates and Shape | V6: Coordinates and Shape
D7: 3 | E7: 4 | F7: 3 | G7: 2 | H7: 3 | L7: 3 | M7: 4 | N7: 1 | O7: 4 | P7: 1 | Q7: 3 | R7: 4 | S7: 1 | T7: 3 | U7: 3 | V7: 1
D8: R | E8: R | F8: R | G8: R | H8: R | L8: R | M8: R | N8: R | O8: R | P8: R | Q8: R | R8: R | S8: R | T8: R | U8: R | V8: R
B9: Firstname | C9: Surname | D9: Q1 | E9: Q2 | F9: Q3 | G9: Q4 | H9: Q5 | J9: P1 | L9: Q1 | M9: Q2 | N9: # | O9: Q3 | P9: # | Q9: Q4 | R9: Q5 | S9: # | T9: Q6 | U9: Q7 | V9: # | X9: P2 | Y9: # | Z9: P1/P2 | AA9: T#
A10: 1 | B10: Liam | C10: Anderson | J10: =SUM(D10:H10) -> 0 | X10: =SUM(L10:M10,O10,Q10,R10,T10,U10) -> 0 | Y10: =SUM(N10,P10,S10,V10) -> 0 | Z10: =X10+J10 -> 0 | AA10: =Y10 -> 0
A11: 2 | B11: Shaun | C11: Bowers | J11: 0 | X11: 0 | Y11: 0 | Z11: 0 | AA11: 0
A12: 3 | B12: Jordan | C12: Brownlie | J12: 0 | X12: 0 | Y12: 0 | Z12: 0 | AA12: 0
A13: 4 | B13: Joseph | C13: Daly | J13: 0 | X13: 0 | Y13: 0 | Z13: 0 | AA13: 0
A14: 5 | B14: Jason | C14: Dickie | J14: 0 | X14: 0 | Y14: 0 | Z14: 0 | AA14: 0
A15: 6 | B15: Euan | C15: Docherty | J15: 0 | X15: 0 | Y15: 0 | Z15: 0 | AA15: 0
A16: 7 | B16: Lewis | C16: Doherty | J16: 0 | X16: 0 | Y16: 0 | Z16: 0 | AA16: 0
A17: 8 | B17: Sophie-Lee | C17: Elliott | J17: 0 | X17: 0 | Y17: 0 | Z17: 0 | AA17: 0
A18: 9 | B18: Jordan | C18: Faleu | J18: 0 | X18: 0 | Y18: 0 | Z18: 0 | AA18: 0
A19: 10 | B19: Owen | C19: Fyfe | J19: 0 | X19: 0 | Y19: 0 | Z19: 0 | AA19: 0
A20: 11 | B20: William | C20: Gill | J20: 0 | X20: 0 | Y20: 0 | Z20: 0 | AA20: 0
A21: 12 | B21: Murray | C21: Glen | J21: 0 | X21: 0 | Y21: 0 | Z21: 0 | AA21: 0
A22: 13 | B22: Kieron | C22: Hagan | J22: 0 | X22: 0 | Y22: 0 | Z22: 0 | AA22: 0
A23: 14 | B23: Thomas | C23: Hamilton | J23: 0 | X23: 0 | Y23: 0 | Z23: 0 | AA23: 0
A24: 15 | B24: Mark | C24: Haswell | J24: 0 | X24: 0 | Y24: 0 | Z24: 0 | AA24: 0
A25: 16 | B25: Emma-Louise | C25: Jones | J25: 0 | X25: 0 | Y25: 0 | Z25: 0 | AA25: 0
A26: 18 | B26: Marina | C26: McDonald | J26: 0 | X26: 0 | Y26: 0 | Z26: 0 | AA26: 0
A27: 19 | B27: Ainslie | C27: McLaren | J27: 0 | X27: 0 | Y27: 0 | Z27: 0 | AA27: 0
A28: 20 | B28: Megan | C28: McLaren | J28: 0 | X28: 0 | Y28: 0 | Z28: 0 | AA28: 0
A29: 21 | B29: Brenden | C29: McNamee | J29: 0 | X29: 0 | Y29: 0 | Z29: 0 | AA29: 0
A30: 22 | B30: Jack | C30: McPake | J30: 0 | X30: 0 | Y30: 0 | Z30: 0 | AA30: 0
A31: 23 | B31: Emma | C31: Quail | J31: 0 | X31: 0 | Y31: 0 | Z31: 0 | AA31: 0
A32: 24 | B32: Daniel | C32: Rodgers | J32: 0 | X32: 0 | Y32: 0 | Z32: 0 | AA32: 0
A33: 25 | B33: Bethan | C33: Rowan | J33: 0 | X33: 0 | Y33: 0 | Z33: 0 | AA33: 0
A34: 26 | B34: Ryan | C34: Thomson | J34: 0 | X34: 0 | Y34: 0 | Z34: 0 | AA34: 0
